{"text_format":"1","workbook":"xlsx","n_sheets":9,"sheets":["Prompt","C100","C200","C300","C326","C400","C500","C600","Enviar"],"not_rendered":{"charts":0,"images":7,"macros":1,"external_links":0,"defined_names":0,"comments":0,"pivot_tables":0},"unopened":[],"bounds":{"document_bytes":16777216,"sheet_cells":100000,"rows_first":2000,"rows_last":500,"rows_between":2000,"halvings":0,"cell_chars":16384,"cell_head_chars":4096},"cells_cut":0,"cells_raw":0,"read":"whole","date_system":"1900"}

{"sheet":"Prompt","index":0,"n_rows":79,"n_cols":4,"rows_kept":79,"cut":false,"hidden":false,"merged":[[1,3,2,6],[4,1,6,8],[43,1,44,8],[78,1,79,8],[9,1,10,8]]}
[]
[null,null,null,"¡ATENCIÓN!"]
[]
[]
[null,"Para hacer uso de las funcionalidades de esta Cédula Electrónica debe habilitar macros"]
[]
[]
[]
[]
[null,"Si utiliza Excel 2013 siga el siguiente procedimiento:"]
[]
[]
[]
[]
[]
[]
[]
[]
[]
[]
[]
[]
[]
[]
[]
[]
[]
[]
[]
[]
[]
[]
[]
[]
[]
[]
[]
[]
[]
[]
[]
[]
[]
[null,"Si utiliza Excel 2007 siga el siguiente procedimiento:"]
[]
[]
[]
[]
[]
[]
[]
[]
[]
[]
[]
[]
[]
[]
[]
[]
[]
[]
[]
[]
[]
[]
[]
[]
[]
[]
[]
[]
[]
[]
[]
[]
[]
[]
[null,"Si utiliza Excel 2000, 2002, 2003 siga el siguiente procedimiento:"]

{"sheet":"C100","index":1,"n_rows":185,"n_cols":15,"rows_kept":185,"cut":false,"hidden":true,"merged":[[49,4,49,7],[50,4,50,7],[51,4,51,7],[52,4,52,7],[53,4,53,7],[1,4,1,11],[2,4,2,11],[3,4,3,11],[2,13,4,13],[72,8,72,13],[70,8,70,13],[9,1,9,14],[14,5,14,13],[12,12,12,13],[16,11,16,13],[16,5,16,8],[45,4,45,7],[46,4,46,7],[47,4,47,7],[48,4,48,7],[54,4,54,7]]}
[]
[null,null,null,null,"CENSO EDUCATIVO 2025",null,null,null,null,null,null,null,null,"CÉDULA"]
[null,null,null,null,"EDUCACIÓN SUPERIOR",null,null,null,null,null,null,null,null,"5A"]
[null,null,null,null,"PEDAGÓGICA"]
[null,"Version :","GA - 1.1"]
[null,"INSTRUCCIONES DEL FORMATO ELECTRÓNICO "]
[]
[]
[]
[null,"IDENTIFICACIÓN DEL SERVICIO EDUCATIVO"]
[]
[]
[null,"1. CÓDIGO MODULAR :",null,null,null,null,null,null,null,null,"2. CÓDIGO DE LOCAL EDUCATIVO :"]
[]
[null,"3. NOMBRE DEL SERVICIO/NIVEL :",null,null,null,""]
[]
[null,"4. DISTRITO :",null,null,null,"",null,null,null,null,"LOCALIDAD :  "]
[]
[null,"5. TIPO DE SERVICIO/NIVEL  :",null,null,null,null,null,"Escuela de Educación Superior Pedagógica - EESP"]
[]
[null,null,null,null,null,null,null,"Instituto de Educación Superior Pedagógica - IESP"]
[]
[]
[null,"Esta Institución Educativa es de Gestión : ",null,null,null,null,""," 1 - Pública de gestión directa",null,""," 2 - Pública de gestión privada",null,null," 3 - Privada",{"$f":"CONCATENATE(G24,J24,M24)","v":""}]
[]
[]
[null,"100. CARACTERÍSTICAS DEL SERVICIO EDUCATIVO (Para II.EE. Públicas y Privadas)"]
[]
[null,"101. EN EL PRESENTE AÑO, ¿BAJO QUÉ MODALIDAD SE REALIZAN LAS CLASES EN ESTE",null,null,null,null,null,null,"103. DURANTE EL ÚLTIMO MES, EN PROMEDIO, ¿CUÁNTAS HORAS SEMANALES,"]
[null,null,"INSTITUTO O ESCUELA?",null,null,null,null,null,"ADICIONALES A SU JORNADA LABORAL, USTED CONSIDERA QUE HA DESTINADO"]
[null,null,"Marque con una “X”, una o más opciones",null,null,null,null,null,"PARA REALIZAR ACTIVIDADES RELACIONADAS A SU TRABAJO COMO DIRECTOR?"]
[]
[null,null,null,null,"Presencial",null,null,null,null,"Horas Semanales adicionales"]
[null,null,null,null,"Semi presencial"]
[null,null,null,null,"Virtual/A distancia"]
[]
[]
[null,"102. ¿EL INSTITUTO O ESCUELA COMPARTE LOCAL EDUCATIVO CON ALGUNA",null,null,null,null,null,null,"104. ¿QUÉ FACTORES LE AYUDARÍAN A MEJORAR SU INNOVACIÓN O PRÁCTICA "]
[null,null,"UNIVERSIDAD?",null,null,null,null,null,"PEDAGÓGICA?"]
[null,null,null,null,null,null,null,null,"Marque con una “X”, una o más opciones"]
[null,null,"Sí  ","",null,"No  "]
[null,null,null,null,null,null,null,null,null,null,null,null,null,null,{"$f":"IF(G33<>\"\",\"X\",\"\")","v":""}]
[null,null,null,null,null,null,null,null,null,null,"Acceso a tecnología/internet",null,null,null,{"$f":"IF(G40<>\"\",\"X\",\"\")","v":""}]
[null,null,"¿Qué universidades?",null,null,null,null,null,null,null,"Acceso a material pedagógico"]
[null,{"$f":"SUM(B46:B50)","v":0},"Seleccione una o más universidades según corresponda",null,null,null,null,null,null,null,"Tiempo para reflexionar y sistematizar la práctica"]
[null,{"$f":"IF(E46<>\"\",1,0)","v":0},"Universidad 1",null,null,null,null,null,{"$f":"COUNTIF($E$46:$E$55,$E46)","v":0},null,"Asistencia técnica o asesoría personalizada"]
[null,{"$f":"IF(E47<>\"\",1,0)","v":0},"Universidad 2",null,null,null,null,null,{"$f":"COUNTIF($E$46:$E$55,$E47)","v":0},null,"Talleres de intercambio de experiencia",null,null,null,{"$f":"IF(G42<>\"\",\"X\",\"\")","v":""}]
[null,0,"Universidad 3",null,null,null,null,null,0,null,"Becas de estudio",null,null,null,""]
[null,0,"Universidad 4",null,null,null,null,null,0,null,"Pasantias",null,null,null,""]
[null,0,"Universidad 5",null,null,null,null,null,0,null,"Fuentes de financiamiento",null,null,null,""]
[null,0,"Universidad 6",null,null,null,null,null,0]
[null,0,"Universidad 7",null,null,null,null,null,0]
[null,0,"Universidad 8",null,null,null,null,null,0]
[null,0,"Universidad 9",null,null,null,null,null,0]
[null,0,"Universidad 10",null,null,null,null,null,0]
[]
[]
[null,null,"SOLO GESTIÓN PRIVADA"]
[null,"105. ¿CUENTA CON ESTUDIANTES BENEFICIADOS CON BECAS DE ESTUDIOS, AL AMPARO DE LA LEY Nº 23585, “ESTUDIANTES DE PLANTELES Y UNIVERSIDADES "]
[null,null,"PARTICULARES QUE PIERDAN A SUS PADRES O TUTORES TIENEN DERECHO A BECA”?"]
[]
[null,null,"Sí  ",null,null,"Año:",2024,"Cantidad de beneficiarios"]
[]
[null,null,"No  "]
[]
[]
[null,null,"106. DATOS SOBRE PROMOTORÍA    (Sólo para ISP Privados)"]
[null,null,"106.1 TIPO DE PERSONA :"]
[null,null,"Marque con un aspa “X” y registre la información solicitada según corresponda"]
[]
[null,null,"Natural",null,"DNI","",null,"Nombre",""]
[]
[null,null,"Jurídica","","RUC","",null,"Razon social  ",""]
[]
[]
[null,null,"106.2 FORMA DE CONSTITUCIÓN (SOLO PARA PERSONA JURÍDICA):"]
[null,null,"Marque con un aspa “X” y registre la información solicitada según corresponda"]
[]
[null,null,"Sociedad",""]
[null,null,null,{"$f":"CONCATENATE(D81,D79)","v":""},null,null,null,"Nº de Partida registral :  ","",null,null,null,"Nº de Asiento registral :  ",""]
[null,null,"Asociación",""]
[]
[]
[]
[]
[]
[]
[]
["001: Universidad Mayor de San Marcos"]
["002: Universidad San Cristóbal de Huamanga"]
["003: Universidad San Antonio Abad del Cusco"]
["004: Universidad de Trujillo"]
["005: Universidad San Agustín"]
["006: Universidad Ciro Alegría"]
["007: Universidad de Ingeniería"]
["008: Universidad Agraria La Molina"]
["009: Universidad San Luis Gonzaga"]
["010: Universidad del Centro del Perú"]
["011: Universidad de la Amazonía Peruana"]
["012: Universidad del Altiplano"]
["013: Universidad de Piura"]
["014: Universidad de Cajamarca"]
["015: Universidad Federico Villarreal"]
["016: Universidad Agraria de la Selva"]
["017: Universidad Hermilio Valdizán"]
["018: Universidad de Educación Enrique Guzmán y Valle"]
["019: Universidad Daniel Alcides Carrión"]
["020: Universidad del Callao"]
["021: Universidad José Faustino Sánchez Carrión"]
["022: Universidad Pedro Ruíz Gallo"]
["023: Universidad Jorge Basadre Grohmann"]
["024: Universidad Santiago Antúnez de Mayolo"]
["025: Universidad de San Martín"]
["026: Universidad de Ucayali"]
["027: Universidad de Tumbes"]
["028: Universidad del Santa"]
["029: Universidad de Huancavelica"]
["030: Universidad Amazónica de Madre de Dios"]
["031: Universidad Toribio Rodríguez de Mendoza de Amazonas"]
["032: Universidad Micaela Bastidas de Apurímac"]
["033: Universidad Intercultural de la Amazonía"]
["034: Universidad Tecnológica de Lima Sur"]
["035: Universidad José María Arguedas"]
["036: Universidad de Moquegua"]
["037: Universidad de Juliaca"]
["038: Universidad de Jaén"]
["039: Universidad de Cañete"]
["040: Universidad Autónoma de Chota"]
["041: Universidad de Barranca"]
["042: Universidad de Cañete"]
["043: Universidad Intercultural Fabiola Salazar Leguía de Bagua"]
["044: Universidad Intercultural de la Selva Central Juan Santos Atahualpa"]
["045: Universidad Intercultural de Quillabamba"]
["046: Universidad Autónoma de Alto Amazonas"]
["047: Universidad Autónoma Altoandina de Tarma"]
["048: Universidad Autónoma de Huanta"]
["049: Universidad Autónoma de Tayacaja Daniel Hernández Morillo"]
["050: Pontificia Universidad Católica del Perú"]
["051: Universidad Peruana Cayetano Heredia"]
["052: Universidad Católica de Santa María"]
["053: Universidad del Pacífico"]
["054: Universidad de Lima"]
["055: Universidad de San Martín de Porres"]
["056: Universidad Femenina del Sagrado Corazón"]
["057: Universidad de Piura"]
["058: Universidad Ricardo Palma"]
["059: Universidad Peruana Los Andes"]
["060: Universidad Peruana Unión"]
["061: Universidad Andina del Cusco"]
["062: Universidad Tecnológica de los Andes"]
["063: Universidad Privada de Tacna"]
["064: Universidad Privada Antenor Orrego"]
["065: Universidad de Huánuco"]
["066: Universidad Marcelino Champagnat"]
["067: Universidad César Vallejo"]
["068: Universidad Peruana de Ciencias Aplicadas"]
["069: Universidad Privada del Norte"]
["070: Universidad San Ignacio de Loyola"]
["071: Universidad Norbert Wiener"]
["072: Universidad Católica San Pablo"]
["073: Universidad Privada San Juan Bautista"]
["074: Universidad Tecnológica del Perú"]
["075: Universidad Continental"]
["076: Universidad Científica del Sur"]
["077: Universidad Católica Santo Toribio de Mogrovejo"]
["078: Universidad Católica Sedes Sapientiae"]
["079: Universidad Señor de Sipán"]
["080: Universidad Católica de Trujillo Benedicto XVI"]
["081: Universidad ESAN"]
["082: Universidad Antonio Ruiz de Montoya"]
["083: Universidad para el Desarrollo Andino"]
["084: Universidad Autónoma de Ica"]
["085: Universidad Autónoma del Perú"]
["086: Universidad de Ciencias y Humanidades"]
["087: Universidad Jaime Bausate y Meza"]
["088: Universidad Le Cordon Bleu S.A.C."]
["089: Universidad Privada de Huancayo Franklin Roosevelt"]
["090: Universidad de Ciencias y Artes de América Latina"]
["091: Universidad de Ingeniería y Tecnología"]
["092: Universidad La Salle"]
["093: Universidad María Auxiliadora"]
["095: Facultad de Teología Pontificia y Civil de Lima"]
["094: Universidad Privada de Trujillo"]
["095: Universidad Peruana del Centro"]
["096: Universidad Politécnica del Perú"]

{"sheet":"C200","index":2,"n_rows":290,"n_cols":52,"rows_kept":290,"cut":false,"hidden":true,"merged":[[8,3,8,25],[33,3,33,25],[82,3,82,15],[207,3,207,18],[91,8,91,9],[91,10,91,11],[91,12,91,13],[91,14,91,15],[89,8,89,9],[89,10,89,11],[89,12,89,13],[89,14,89,15],[88,8,88,9],[88,10,88,11],[88,12,88,13],[90,8,90,9],[90,10,90,11],[90,12,90,13],[90,14,90,15],[37,3,37,7],[35,2,36,7],[36,10,36,11],[87,12,87,13],[84,2,85,7],[36,26,36,27],[36,16,36,17],[36,18,36,19],[36,20,36,21],[88,14,88,15],[11,10,11,11],[11,24,11,25],[24,2,24,3],[35,10,35,29],[36,28,36,29],[30,2,30,3],[36,12,36,13],[36,14,36,15],[31,2,31,3],[11,22,11,23],[11,12,11,13],[21,2,21,3],[29,2,29,3],[11,16,11,17],[11,20,11,21],[80,4,80,7],[86,3,86,7],[14,2,14,3],[11,14,11,15],[1,2,1,25],[2,2,2,25],[6,2,6,25],[23,2,23,3],[36,22,36,23],[13,2,13,3],[20,2,20,3],[10,4,11,5],[11,8,11,9],[19,2,19,3],[10,2,12,3],[10,6,10,25],[11,6,11,7],[27,2,27,3],[28,2,28,3],[36,24,36,25],[15,2,15,3],[18,2,18,3],[17,2,17,3],[16,2,16,3],[26,2,26,3],[25,2,25,3],[11,18,11,19],[22,2,22,3],[84,8,84,15],[85,8,85,11],[85,12,85,15],[87,14,87,15],[87,8,87,9],[35,8,36,9],[86,8,86,9],[86,10,86,11],[86,12,86,13],[87,10,87,11],[86,14,86,15],[92,8,92,9],[92,10,92,11],[92,12,92,13],[92,14,92,15],[93,8,93,9],[93,10,93,11],[93,12,93,13],[93,14,93,15],[94,8,94,9],[94,10,94,11],[94,12,94,13],[94,14,94,15],[95,8,95,9],[95,10,95,11],[95,12,95,13],[95,14,95,15],[96,8,96,9],[96,10,96,11],[96,12,96,13],[96,14,96,15],[97,8,97,9],[97,10,97,11],[97,12,97,13],[97,14,97,15],[98,8,98,9],[98,10,98,11],[98,12,98,13],[98,14,98,15],[99,8,99,9],[99,10,99,11],[99,12,99,13],[99,14,99,15],[100,8,100,9],[100,10,100,11],[100,12,100,13],[100,14,100,15],[101,8,101,9],[101,10,101,11],[101,12,101,13],[101,14,101,15],[102,8,102,9],[102,10,102,11],[102,12,102,13],[102,14,102,15],[103,8,103,9],[103,10,103,11],[103,12,103,13],[103,14,103,15],[104,8,104,9],[104,10,104,11],[104,12,104,13],[104,14,104,15],[105,8,105,9],[105,10,105,11],[105,12,105,13],[105,14,105,15],[106,8,106,9],[106,10,106,11],[106,12,106,13],[106,14,106,15],[107,8,107,9],[107,10,107,11],[107,12,107,13],[107,14,107,15],[108,8,108,9],[108,10,108,11],[108,12,108,13],[108,14,108,15],[109,8,109,9],[109,10,109,11],[109,12,109,13],[109,14,109,15],[110,8,110,9],[110,10,110,11],[110,12,110,13],[110,14,110,15],[111,8,111,9],[111,10,111,11],[111,12,111,13],[111,14,111,15],[112,8,112,9],[112,10,112,11],[112,12,112,13],[112,14,112,15],[113,8,113,9],[113,10,113,11],[113,12,113,13],[113,14,113,15],[114,8,114,9],[114,10,114,11],[114,12,114,13],[114,14,114,15],[115,8,115,9],[115,10,115,11],[115,12,115,13],[115,14,115,15],[116,8,116,9],[116,10,116,11],[116,12,116,13],[116,14,116,15],[117,8,117,9],[117,10,117,11],[117,12,117,13],[117,14,117,15],[118,8,118,9],[118,10,118,11],[118,12,118,13],[118,14,118,15],[119,8,119,9],[119,10,119,11],[119,12,119,13],[119,14,119,15],[124,10,124,11],[124,12,124,13],[120,14,120,15],[121,8,121,9],[121,10,121,11],[121,12,121,13],[121,14,121,15],[120,8,120,9],[120,10,120,11],[120,12,120,13],[123,8,123,9],[123,10,123,11],[123,12,123,13],[124,14,124,15],[125,8,125,9],[125,10,125,11],[125,12,125,13],[125,14,125,15],[123,14,123,15],[122,8,122,9],[122,10,122,11],[122,12,122,13],[122,14,122,15],[124,8,124,9],[126,8,126,9],[126,10,126,11],[198,5,198,24],[190,21,190,22],[127,8,127,9],[127,10,127,11],[128,12,128,13],[127,12,127,13],[128,14,128,15],[127,14,127,15],[126,12,126,13],[126,14,126,15],[133,6,133,19],[129,8,129,9],[140,2,141,7],[141,18,141,19],[141,20,141,21],[141,22,141,23],[129,4,129,7],[128,8,128,9],[128,10,128,11],[133,2,134,3],[133,4,134,5],[129,12,129,13],[129,10,129,11],[141,12,141,13],[129,14,129,15],[288,4,288,5],[285,4,285,5],[286,4,286,5],[287,4,287,5],[135,4,135,5],[190,13,190,14],[210,11,210,12],[210,13,210,14],[283,6,283,15],[189,2,191,4],[189,7,189,22],[198,2,200,4],[190,19,190,20],[190,15,190,16],[210,9,210,10],[199,21,199,22],[283,2,284,3],[283,4,284,5],[136,4,136,5],[185,4,185,7],[142,3,142,7],[199,5,199,6],[190,9,190,10],[190,11,190,12],[190,7,190,8],[199,9,199,10],[140,10,140,15],[209,5,210,6],[209,7,209,26],[190,17,190,18],[199,15,199,16],[199,17,199,18],[199,7,199,8],[210,21,210,22],[209,3,211,4],[189,5,190,6],[210,23,210,24],[210,15,210,16],[210,7,210,8],[140,30,141,31],[140,32,141,33],[140,34,141,35],[141,10,141,11],[141,16,141,17],[140,8,141,9],[210,25,210,26],[199,19,199,20],[199,13,199,14],[199,11,199,12],[199,23,199,24],[140,16,140,19],[140,20,140,23],[140,24,141,25],[140,26,141,27],[140,28,141,29],[210,17,210,18],[210,19,210,20],[141,14,141,15]]}
[]
[null,null,"CENSO EDUCATIVO 2025"]
[null,null,"MATRÍCULA, DOCENTES Y RECURSOS"]
[]
[]
[null,null,null,null,null,null,0,0,0,0,0,0,0,0,0,0]
[null,null,"200. MATRICULA Y SECCIONES"]
[]
[null,null,201,"MATRÍCULA TOTAL, POR CICLO Y SEXO, SEGÚN EDAD (Cumplida al 31 de marzo de 2025)\nRegistrar la información correspondiente al semestre académico 2025-I"]
[]
[null,null,"EDAD EN AÑOS CUMPLIDOS\nAL 31-03-2025",null,"TOTAL",null,"CICLO"]
[null,null,null,null,null,null,"I",null,"II",null,"III",null,"IV",null,"V",null,"VI",null,"VII",null,"VIII",null,"IX",null,"X"]
[null,null,null,null,"H","M","H","M","H","M","H","M","H","M","H","M","H","M","H","M","H","M","H","M","H","M"]
["00",null,"TOTAL",null,{"$f":"G14+I14+K14+M14+O14+Q14+S14+U14+W14+Y14","v":0},{"$f":"H14+J14+L14+N14+P14+R14+T14+V14+X14+Z14","v":0},{"$f":"SUM(G15:G32)","v":0},{"$f":"SUM(H15:H32)","v":0},{"$f":"SUM(I15:I32)","v":0},0,0,0,0,0,0,0,0,0,0,0,0,0,0,0,0,{"$f":"SUM(Z15:Z32)","v":0}]
["15",null,15,null,{"$f":"G15+I15+K15+M15+O15+Q15+S15+U15+W15+Y15","v":0},{"$f":"H15+J15+L15+N15+P15+R15+T15+V15+X15+Z15","v":0}]
["16",null,16,null,{"$f":"G16+I16+K16+M16+O16+Q16+S16+U16+W16+Y16","v":0},{"$f":"H16+J16+L16+N16+P16+R16+T16+V16+X16+Z16","v":0}]
["17",null,17,null,0,0]
["18",null,18,null,0,0]
["19",null,19,null,0,0]
["20",null,20,null,0,0]
["21",null,21,null,0,0]
["22",null,22,null,0,0]
["23",null,23,null,0,0]
["24",null,24,null,0,0]
["25",null,"25-29",null,0,0]
["30",null,"30-34",null,0,0]
["35",null,"35-39",null,0,0]
["40",null,"40-44",null,0,0]
["45",null,"45-49",null,0,0]
["50",null,"50-54",null,0,0]
["55",null,"55-59",null,0,0]
["60",null,"60 y más",null,0,0]
[null,null,"NOTA:  Incluya a los estudiantes con algún tipo de discapacidad u otra condición"]
[null,null,202,"MATRÍCULA TOTAL, POR CICLO Y SEXO, SEGÚN CARRERAS Y ESPECIALIDAD CON CARRERA DOCENTES\n(Sumar todos los turnos). Semestre académico 2025-I)"]
[]
[null,null,"CARRERAS Y ESPECIALIDADES",null,null,null,null,null,"TOTAL",null,"CICLO"]
[null,null,null,null,null,null,null,null,null,null,"I",null,"II",null,"III",null,"IV",null,"V",null,"VI",null,"VII",null,"VIII",null,"IX",null,"X"]
[null,null,"CÓDIGO","DENOMINACIÓN",null,null,null,null,"H","M","H","M","H","M","H","M","H","M","H","M","H","M","H","M","H","M","H","M","H","M"]
["00",null,"00","TOTAL",null,null,null,null,{"$f":"K39+M39+O39+Q39+S39+U39+W39+Y39+AA39+AC39","v":0},{"$f":"L39+N39+P39+R39+T39+V39+X39+Z39+AB39+AD39","v":0},{"$f":"SUM(K40:K81)","v":0},{"$f":"SUM(L40:L81)","v":0},0,0,0,0,0,0,0,0,0,0,0,0,0,0,0,{"$f":"SUM(AB40:AB81)","v":0},0,0]
["01",null,"01","Educación Inicial",null,null,null,null,{"$f":"K40+M40+O40+Q40+S40+U40+W40+Y40+AA40+AC40","v":0},{"$f":"L40+N40+P40+R40+T40+V40+X40+Z40+AB40+AD40","v":0}]
["02",null,"02","Educación Primaria",null,null,null,null,0,0]
["03",null,"03","Educación Inicial Intercultural Bilingüe",null,null,null,null,0,0]
["04",null,"04","Educación Primaria Intercultural Bilingüe",null,null,null,null,0,0]
["05",null,"05","Educación Básica Alternativa",null,null,null,null,0,0]
["06",null,"06","Educación Especial",null,null,null,null,0,0]
["07",null,"07","Educación Física",null,null,null,null,0,0]
["08",null,"08","Educación Artística",null,null,null,null,0,0]
["09",null,"09","E.S. Lengua y Literatura",null,null,null,null,0,0]
["10",null,"10","E.S. Especialidad Comunicación",null,null,null,null,0,0]
["11",null,"11","E.S. Matemática y Física",null,null,null,null,0,0]
["12",null,"12","E.S. Especialidad Matemática",null,null,null,null,0,0]
["13",null,"13","E.S. CCSS y Filosofía",null,null,null,null,0,0]
["14",null,"14","E.S. Especialidad Ciudadanía y Ciencias Sociales",null,null,null,null,0,0]
["15",null,"15","E.S. Ciencias Naturales",null,null,null,null,0,0]
["16",null,"16","E.S. Especialidad Ciencia y Tecnología",null,null,null,null,0,0]
["17",null,"17","E.S. Alimentación y Nutrición",null,null,null,null,0,0]
["18",null,"18","E.S. Biología y Química",null,null,null,null,0,0]
["19",null,"19","E.S. Historia y Geografía",null,null,null,null,0,0]
["20",null,"20","E.S. CC.HH. Sociales",null,null,null,null,0,0]
["21",null,"21","Idiomas Especialidad Inglés",null,null,null,null,0,0]
["22",null,"22","Educación Religiosa",null,null,null,null,0,0]
["23",null,"23","E.S. Educación Familiar",null,null,null,null,0,0]
["24",null,"24","E.T. Artes Industriales",null,null,null,null,0,0]
["25",null,"25","E.T. Artesanía",null,null,null,null,0,0]
["26",null,"26","E.T. Agropecuaria",null,null,null,null,0,0]
["27",null,"27","E.T. Construcción en madera",null,null,null,null,0,0]
["28",null,"28","Computación e Informática",null,null,null,null,0,0]
["29",null,"29","E.T. Carpintería / Ebanistería",null,null,null,null,0,0]
["30",null,"30","E.T. Electricidad",null,null,null,null,0,0]
["31",null,"31","E.T. Electrónica",null,null,null,null,0,0]
["32",null,"32","E.T. Ebanistería",null,null,null,null,0,0]
["33",null,"33","E.T. Industria del Vestido",null,null,null,null,0,0]
["34",null,"34","E.T. Industria del Vestido Alimentación y Alta Costura",null,null,null,null,0,0]
["35",null,"35","E.T. en Industria del Vestido y Alta Costura",null,null,null,null,0,0]
["36",null,"36","E.S.Técnica especialidad Ind. del Vestido Ind.Alimentaria y Artesanía",null,null,null,null,0,0]
["37",null,"37","E.T. Industria Alimentaria",null,null,null,null,0,0]
["38",null,"38","E.T. Mecánica Automotriz",null,null,null,null,0,0]
["39",null,"39","E.T. Mecánica de Producción",null,null,null,null,0,0]
["40",null,"40","E.T. Mecánica de Producción y Soldadura",null,null,null,null,0,0]
["41",null,"41","Educación para el trabajo: Textil y Confección",null,null,null,null,0,0]
["42",null,"42","Otro",null,null,null,null,{"$f":"K81+M81+O81+Q81+S81+U81+W81+Y81+AA81+AC81","v":0},{"$f":"L81+N81+P81+R81+T81+V81+X81+Z81+AB81+AD81","v":0}]
[null,null,"NOTA: Los totales de esta tabla deben ser iguales a los de la tabla 201"]
[null,null,203,"POSTULANTES E INGRESANTES, POR SEXO, SEGÚN CARRERAS Y ESPECIALIDADES\nSumar todos los turnos). Semestre académico 2025-I"]
[]
[null,null,"CARRERAS Y ESPECIALIDADES",null,null,null,null,null,"SEMESTRE 2025-I"]
[null,null,null,null,null,null,null,null,"POSTULANTES",null,null,null,"INGRESANTES"]
[null,null,"CÓDIGO","DENOMINACIÓN",null,null,null,null,"H",null,"M",null,"H",null,"M"]
["00",null,"00","TOTAL",null,null,null,null,{"$f":"SUM(I89:J130)","v":0},null,{"$f":"SUM(K89:L130)","v":0},null,{"$f":"SUM(M89:N130)","v":0},null,{"$f":"SUM(O89:P130)","v":0}]
["01",null,"01","Educación Inicial"]
["02",null,"02","Educación Primaria"]
["03",null,"03","Educación Inicial Intercultural Bilingüe"]
["04",null,"04","Educación Primaria Intercultural Bilingüe"]
["05",null,"05","Educación Básica Alternativa"]
["06",null,"06","Educación Especial"]
["07",null,"07","Educación Física"]
["08",null,"08","Educación Artística"]
["09",null,"09","E.S. Lengua y Literatura"]
["10",null,"10","E.S. especialidad Comunicación"]
["11",null,"11","E.S. Matemática y Física"]
["12",null,"12","E.S. especialidad Matemática"]
["13",null,"13","E.S. CCSS y Filosofía"]
["14",null,"14","E.S. especialidad Ciudadanía y Ciencias Sociales"]
["15",null,"15","E.S. Ciencias Naturales"]
["16",null,"16","E.S. especialidad Ciencia y Tecnología"]
["17",null,"17","E.S. Alimentación y Nutrición"]
["18",null,"18","E.S. Biología y Química"]
["19",null,"19","E.S. Historia y Geografía"]
["20",null,"20","E.S. CC.HH. Sociales"]
["21",null,"21","Idiomas especialidad Inglés"]
["22",null,"22","Educación Religiosa"]
["23",null,"23","E.S. Educación Familiar"]
["24",null,"24","E.T. Artes Industriales"]
["25",null,"25","E.T. Artesanía"]
["26",null,"26","E.T. Agropecuaria"]
["27",null,"27","E.T. Construcción en madera"]
["28",null,"28","Computación e Informática"]
["29",null,"29","E.T. Carpintería / Ebanistería"]
["30",null,"30","E.T. Electricidad"]
["31",null,"31","E.T. Electrónica"]
["32",null,"32","E.T. Ebanistería"]
["33",null,"33","E.T. Industria del Vestido"]
["34",null,"34","E.T. Industria del Vestido Alimentación y Alta Costura"]
["35",null,"35","E.T. en Industria del Vestido y Alta Costura"]
["36",null,"36","E.S.Técnica especialidad Ind. del Vestido Ind.Alimentaria y Artesanía"]
["37",null,"37","E.T. Industria Alimentaria"]
["38",null,"38","E.T. Mecánica Automotriz"]
["39",null,"39","E.T. Mecánica de Producción"]
["40",null,"40","E.T. Mecánica de Producción y Soldadura"]
["41",null,"41","Educación para el trabajo: Textil y Confección"]
["42",null,"42","Otro"]
[]
[null,null,204,"INGRESANTES, POR EDAD, SEGÚN SEXO"]
[]
[null,null,"SEXO",null,"TOTAL",null,"EDAD EN AÑOS CUMPLIDOS AL 31 DE MARZO DE 2023 / SEMESTRE 2023-I"]
[null,null,null,null,null,null,15,16,17,18,19,20,21,22,23,24,"25-29","30-34","35-39","40 y más"]
["01",null,"Hombre",null,{"$f":"SUM(G136:T136)","v":0}]
["02",null,"Mujer",null,{"$f":"SUM(G137:T137)","v":0}]
[null,null,"NOTA: Los totales de esta tabla deben ser iguales a los reportados en la columna “Ingresantes” de la tabla 203."]
[null,null,205,"MATRÍCULA POR TIPO DE DISCAPACIDAD U OTRA CONDICIÓN Y SEXO, SEGÚN CARRERAS Y ESPECIALIDADES"]
[]
[null,null,"CARRERAS Y/O PROGRAMAS DE ESTUDIOS",null,null,null,null,null,"TOTAL",null,"Discapacidad Intelectual",null,null,null,null,null,"Discapacidad Auditiva",null,null,null,"Discapacidad Visual",null,null,null,"Discapacidad Física o Motora",null,"Trastorno del Espectro Autista",null,"Sordoceguera",null,"Multidis-capacidad",null,"Otra discapacidad u otra condición",null," Ninguna  discapacidad"]
[null,null,null,null,null,null,null,null,null,null,"Retardo mental leve",null,"Retardo mental moderado",null,"Retardo mental severo",null,"Hipoacusia",null,"Sordera total",null,"Baja visión",null,"Ceguera"]
[null,null,"CÓDIGO","DENOMINACIÓN",null,null,null,null,"H","M","H","M","H","M","H","M","H","M","H","M","H","M","H","M","H","M","H","M","H","M","H","M","H","M","H","M"]
[null,null,"00","TOTAL",null,null,null,null,{"$f":"K144+M144+O144+Q144+S144+U144+W144+Y144+AA144+AC144+AE144+AG144+AI144","v":0},0,{"$f":"SUM(K145:K186)","v":0},{"$f":"SUM(L145:L186)","v":0},0,0,0,0,0,0,0,0,0,0,0,0,0,0,0,{"$f":"SUM(AB145:AB186)","v":0},{"$f":"SUM(AC145:AC186)","v":0},0,0,0,0,{"$f":"SUM(AH145:AH186)","v":0},{"$f":"SUM(AI145:AI186)","v":0},{"$f":"SUM(AJ145:AJ186)","v":0}]
[null,null,"01","Educación Inicial",null,null,null,null,0,0]
[null,null,"02","Educación Primaria",null,null,null,null,0,0]
[null,null,"03","Educación Inicial Intercultural Bilingüe",null,null,null,null,{"$f":"K147+M147+O147+Q147+S147+U147+W147+Y147+AA147+AC147+AE147+AG147+AI147","v":0},{"$f":"L147+N147+P147+R147+T147+V147+X147+Z147+AB147+AD147+AF147+AH147+AJ147","v":0}]
[null,null,"04","Educación Primaria Intercultural Bilingüe",null,null,null,null,0,0]
[null,null,"05","Educación Básica Alternativa",null,null,null,null,0,0]
[null,null,"06","Educación Especial",null,null,null,null,0,0]
[null,null,"07","Educación Física",null,null,null,null,0,0]
[null,null,"08","Educación Artística",null,null,null,null,0,0]
[null,null,"09","E.S. Lengua y Literatura",null,null,null,null,0,0]
[null,null,"10","E.S. especialidad Comunicación",null,null,null,null,0,0]
[null,null,"11","E.S. Matemática y Física",null,null,null,null,0,0]
[null,null,"12","E.S. especialidad Matemática",null,null,null,null,0,0]
[null,null,"13","E.S. CCSS y Filosofía",null,null,null,null,0,0]
[null,null,"14","E.S. especialidad Ciudadanía y Ciencias Sociales",null,null,null,null,0,0]
[null,null,"15","E.S. Ciencias Naturales",null,null,null,null,0,0]
[null,null,"16","E.S. especialidad Ciencia y Tecnología",null,null,null,null,0,0]
[null,null,"17","E.S. Alimentación y Nutrición",null,null,null,null,0,0]
[null,null,"18","E.S. Biología y Química",null,null,null,null,0,0]
[null,null,"19","E.S. Historia y Geografía",null,null,null,null,0,0]
[null,null,"20","E.S. CC.HH. Sociales",null,null,null,null,0,0]
[null,null,"21","Idiomas especialidad Inglés",null,null,null,null,0,0]
[null,null,"22","Educación Religiosa",null,null,null,null,0,0]
[null,null,"23","E.S. Educación Familiar",null,null,null,null,0,0]
[null,null,"24","E.T. Artes Industriales",null,null,null,null,0,0]
[null,null,"25","E.T. Artesanía",null,null,null,null,0,0]
[null,null,"26","E.T. Agropecuaria",null,null,null,null,0,0]
[null,null,"27","E.T. Construcción en madera",null,null,null,null,0,0]
[null,null,"28","Computación e Informática",null,null,null,null,0,0]
[null,null,"29","E.T. Carpintería / Ebanistería",null,null,null,null,0,0]
[null,null,"30","E.T. Electricidad",null,null,null,null,0,0]
[null,null,"31","E.T. Electrónica",null,null,null,null,0,0]
[null,null,"32","E.T. Ebanistería",null,null,null,null,0,0]
[null,null,"33","E.T. Industria del Vestido",null,null,null,null,0,0]
[null,null,"34","E.T. Industria del Vestido Alimentación y Alta Costura",null,null,null,null,0,0]
[null,null,"35","E.T. en Industria del Vestido y Alta Costura",null,null,null,null,0,0]
[null,null,"36","E.S.Técnica especialidad Ind. del Vestido Ind.Alimentaria y Artesanía",null,null,null,null,0,0]
[null,null,"37","E.T. Industria Alimentaria",null,null,null,null,0,0]
[null,null,"38","E.T. Mecánica Automotriz",null,null,null,null,0,0]
[null,null,"39","E.T. Mecánica de Producción",null,null,null,null,0,0]
[null,null,"40","E.T. Mecánica de Producción y Soldadura",null,null,null,null,0,0]
[null,null,"41","Educación para el trabajo: Textil y Confección",null,null,null,null,0,0]
[null,null,"42","Otro",null,null,null,null,{"$f":"K186+M186+O186+Q186+S186+U186+W186+Y186+AA186+AC186+AE186+AG186+AI186","v":0},{"$f":"L186+N186+P186+R186+T186+V186+X186+Z186+AB186+AD186+AF186+AH186+AJ186","v":0}]
[null,null,"NOTA: Los totales de esta tabla deben ser iguales a la suma de las tabla 201 y 202."]
[null,null,206," MATRÍCULA POR EDAD Y SEXO SEGÚN TIPO DE PROGRAMA DE REPARACIONES EN EDUCACIÓN (Ley N° 28592)"]
[]
[null,null,"TIPO DE PROGRAMA DE\nREPARACIÓN EN EDUCACIÓN",null,null,"TOTAL",null,"EDAD"]
[null,null,null,null,null,null,null,15,null,16,null,17,null,18,null,19,null,20,null,21,null,22]
[null,null,null,null,null,"H","M","H","M","H","M","H","M","H","M","H","M","H","M","H","M","H","M"]
["00",null,"TOTAL",null,null,{"$f":"H193+J193+L193+N193+P193+R193+T193+V193+X193","v":0},{"$f":"I193+K193+M193+O193+Q193+S193+U193+W193+Y193","v":0},{"$f":"SUM(H194:H197)","v":0},{"$f":"SUM(I194:I197)","v":0},{"$f":"SUM(J194:J197)","v":0},0,0,0,0,0,0,0,0,0,0,0,0,0,{"$f":"F202+H202+J202+L202+N202+P202+R202+T202+V202+X202","v":0},{"$f":"G202+I202+K202+M202+O202+Q202+S202+U202+W202+Y202","v":0},{"$f":"H193+J193+L193+N193+P193+R193+T193+V193","v":0},{"$f":"I193+K193+M193+O193+Q193+S193+U193+W193","v":0}]
["01",null,"RUV",null,null,0,{"$f":"I194+K194+M194+O194+Q194+S194+U194+W194+Y194","v":0},null,null,null,null,null,null,null,null,null,null,null,null,null,null,null,null,{"$f":"F203+H203+J203+L203+N203+P203+R203+T203+V203+X203","v":0},0,{"$f":"H194+J194+L194+N194+P194+R194+T194+V194","v":0},{"$f":"I194+K194+M194+O194+Q194+S194+U194+W194","v":0}]
["02",null,"REBRED",null,null,0,{"$f":"I195+K195+M195+O195+Q195+S195+U195+W195+Y195","v":0},null,null,null,null,null,null,null,null,null,null,null,null,null,null,null,null,0,0,0,0]
["03",null,"Otros Programas del Estado",null,null,0,{"$f":"I196+K196+M196+O196+Q196+S196+U196+W196+Y196","v":0},null,null,null,null,null,null,null,null,null,null,null,null,null,null,null,null,0,0,0,0]
["04",null,"Estudiante no beneficiado",null,null,0,0,null,null,null,null,null,null,null,null,null,null,null,null,null,null,null,null,0,0,0,0]
[null,null,"CONTINUACIÓN TABLA 206 …."]
[null,null,"TIPO DE PROGRAMA DE\nREPARACIÓN EN EDUCACIÓN",null,null,"EDAD"]
[null,null,null,null,null,23,null,24,null,"25-29",null,"30-34",null,"35-39",null,"40-44",null,"45-49",null,"50-54",null,"55-59",null,"60 y más"]
[null,null,null,null,null,"H","M","H","M","H","M","H","M","H","M","H","M","H","M","H","M","H","M","H","M"]
["00",null,"TOTAL",null,null,{"$f":"SUM(F203:F206)","v":0},0,0,0,0,0,0,0,0,0,0,0,0,0,0,0,0,0,0,0]
["01",null,"RUV"]
["02",null,"REBRED"]
["03",null,"Otros Programas del Estado"]
["04",null,"Estudiante no beneficiado"]
[]
[null,null,207,"MATRÍCULA POR CICLOS Y SEXO, SEGÚN LENGUA QUE DOMINA (Cumplida al 31 de marzo de 2025)\nSumar todos los turnos). Registrar la información del semestre académico 2025-I"]
[]
[null,null,null,"DENOMINACIÓN DE LA LENGUA",null,"TOTAL",null,"CICLO"]
[null,null,"CÓDIGO",null,null,null,null,"I",null,"II",null,"III",null,"IV",null,"V",null,"VI",null,"VII",null,"VIII",null,"IX",null,"X"]
[null,null,null,null,null,"H","M","H","M","H","M","H","M","H","M","H","M","H","M","H","M","H","M","H","M","H","M"]
[null,null,"0000","TOTAL",null,{"$f":"SUM(F214:F280)","v":0},{"$f":"SUM(G214:G280)","v":0},{"$f":"SUM(H214:H280)","v":0},{"$f":"SUM(I214:I280)","v":0},{"$f":"SUM(J214:J280)","v":0},0,0,0,0,0,0,0,0,0,0,0,0,0,0,0,0,{"$f":"SUM(AA214:AA280)","v":0},null,null,null,null,null,null,null,null,null,null,null,null,null,null,null,null,null,null,null,null,null,null,null,null,{"$f":"SUM(#REF!)","v":{"$error":"#REF!"}}]
[null,null,"0100","Castellano",null,{"$f":"H214+J214+L214+N214+P214+R214+T214+V214+X214+Z214","v":0},{"$f":"I214+K214+M214+O214+Q214+S214+U214+W214+Y214+AA214","v":0}]
[null,null,"0200","Achuar",null,0,0]
[null,null,"0300","Aimara",null,0,0]
[null,null,"0400","Amahuaca",null,0,0]
[null,null,"0500","Arabela",null,0,0]
[null,null,"0600","Asháninka",null,0,0]
[null,null,"0610","Asheninka",null,0,0]
[null,null,"0700","Awajún",null,0,0]
[null,null,"0800","Bora",null,0,0]
[null,null,"0900","Kapanawa",null,0,0]
[null,null,"1000","Cashinahua",null,0,0]
[null,null,"1100","Kawki",null,0,0]
[null,null,"1200","Chamikuro",null,0,0]
[null,null,"1300","Ese eja",null,0,0]
[null,null,"1400","Harakbut",null,0,0]
[null,null,"1500","Iñapari",null,0,0]
[null,null,"1600","Ikuitu",null,0,0]
[null,null,"1700","Iskonawa",null,0,0]
[null,null,"1800","Jaqaru",null,0,0]
[null,null,"1900","Kakataibo",null,0,0]
[null,null,"2000","Kakinte",null,0,0]
[null,null,"2110","Kandozi-chapra (chapra)",null,0,0]
[null,null,"2120","Kandozi-chapra (kandozi)",null,0,0]
[null,null,"2200","Kukama-kukamiria",null,0,0]
[null,null,"2300","Madija",null,0,0]
[null,null,"2400","Maijiki",null,0,0]
[null,null,"2500","Matsés",null,0,0]
[null,null,"2600","Matsigenka",null,0,0]
[null,null,"2700","Munichi",null,0,0]
[null,null,"2800","Murui-muinani",null,0,0]
[null,null,"2900","Matsigenka-montetokunirira",null,0,0]
[null,null,"3000","Nomatsigenga",null,0,0]
[null,null,"3100","Ocaina",null,{"$f":"H246+J246+L246+N246+P246+R246+T246+V246+X246+Z246","v":0},{"$f":"I246+K246+M246+O246+Q246+S246+U246+W246+Y246+AA246","v":0}]
[null,null,"3200","Omagua",null,0,0]
[null,null,"3310","Quechua amazónico (Kichwa)",null,0,0]
[null,null,"3321","Quechua central (Ancash)",null,0,0]
[null,null,"3322","Quechua central (Huánuco)",null,0,0]
[null,null,"3323","Quechua central (Wanka)",null,0,0]
[null,null,"3324","Quechua central (Pasco)",null,0,0]
[null,null,"3331","Quechua norteño (Cajamarca)",null,0,0]
[null,null,"3332","Quechua norteño (Inkawasi Kañaris)",null,0,0]
[null,null,"3341","Quechua sureño (Chanka)",null,0,0]
[null,null,"3342","Quechua sureño (Collao)",null,0,0]
[null,null,"3400","Resígaro",null,0,0]
[null,null,"3500","Secoya",null,0,0]
[null,null,"3600","Sharanahua",null,0,0]
[null,null,"3700","Shawi",null,0,0]
[null,null,"3800","Shipibo-Konibo",null,0,0]
[null,null,"3900","Shiwilu",null,0,0]
[null,null,"4000","Taushiro",null,0,0]
[null,null,"4100","Ticuna",null,0,0]
[null,null,"4200","Urarina",null,0,0]
[null,null,"4300","Wampis",null,0,0]
[null,null,"4400","Yagua",null,0,0]
[null,null,"4500","Yaminahua",null,0,0]
[null,null,"4600","Yanesha",null,0,0]
[null,null,"4700","Yine",null,0,0]
[null,null,"4800","Nahua",null,0,0]
[null,null,4900,"Lengua de señas",null,{"$f":"H272+J272+L272+N272+P272+R272+T272+V272+X272+Z272","v":0},{"$f":"I272+K272+M272+O272+Q272+S272+U272+W272+Y272+AA272","v":0}]
[null,null,"5100","Alemán",null,0,0]
[null,null,"5200","Inglés",null,0,0]
[null,null,"5300","Italiano",null,0,0]
[null,null,"5400","Japonés",null,0,0]
[null,null,"5500","Portugués",null,0,0]
[null,null,"5600","Ruso",null,0,0]
[null,null,"5700","Francés",null,0,0]
[null,null,"5800","Otra lengua extranjera",null,0,0]
[]
[null,null,208,"NÚMERO TOTAL DE SECCIONES POR CICLO, SEGÚN TURNO"]
[]
[null,null,"TURNO",null,"TOTAL",null,"CICLO"]
[null,null,null,null,null,null,"I","II","III","IV","V","VI","VII","VIII","IX","X"]
["00",null,"TOTAL",null,{"$f":"SUM(G286:P286)","v":0},null,{"$f":"SUM(G287:G289)","v":0},{"$f":"SUM(H287:H289)","v":0},{"$f":"SUM(I287:I289)","v":0},0,0,0,0,0,0,{"$f":"SUM(P287:P289)","v":0}]
["01",null,"Mañana",null,{"$f":"SUM(G287:P287)","v":0}]
["02",null,"Tarde",null,{"$f":"SUM(G288:P288)","v":0}]
["03",null,"Noche",null,{"$f":"SUM(G289:P289)","v":0}]
[null,null,"Solo registre el número de secciones que tiene, por ciclo de estudio según turno"]

{"sheet":"C300","index":3,"n_rows":520,"n_cols":68,"rows_kept":520,"cut":false,"hidden":true,"merged":[[15,50,17,50],[7,10,7,21],[14,14,14,15],[15,34,17,34],[15,35,16,44],[15,22,17,22],[15,25,17,25],[15,10,17,10],[15,19,17,19],[15,18,17,18],[15,16,17,16],[15,45,17,45],[15,46,17,46],[15,47,17,47],[15,23,17,23],[15,26,17,26],[15,48,17,48],[15,49,17,49],[16,28,17,28],[16,27,17,27],[15,27,15,28],[6,10,6,21],[14,35,14,44],[15,32,17,32],[15,30,17,30],[15,31,17,31],[15,33,17,33],[15,17,17,17],[15,14,15,15],[15,11,17,11],[15,12,17,12],[15,13,17,13],[15,20,16,21],[15,24,17,24],[15,29,17,29]]}
[]
[null,null,null,null,null,null,null,null,null,null,"CENSO EDUCATIVO 2025"]
[null,null,null,null,null,null,null,null,null,null,"MATRÍCULA, DOCENTES Y RECURSOS"]
[]
["PERSONAL",{"$f":"N10+U10","v":0}]
[]
["DOCENTES",{"$f":"COUNTIF(Q19:Q518,\"01: Docente\")","v":0},null,null,null,null,null,null,null,null,"300. PERSONAL DOCENTE Y ADMINISTRATIVO"]
["ADMINISTRATIVOS",{"$f":"COUNTIF(Q19:Q518,\"02: Administrativo\")","v":0},null,null,null,null,null,null,null,null,"En esta tabla, REGISTRE a todo el personal docente, auxiliares de educación y personal administrativo que se encuentre laborando en el servicio/nivel educativo durante el periodo\nde reporte del censo educativo. (EXCLUYA al personal que se encuentre haciendo uso de licencia y a los que han sido destacados a otra IE/DRE/UGEL)"]
[]
["DOCENTES DE AULA",{"$f":"COUNTIF(AG19:AG518,\"15: (111)-Docente por horas\")","v":0},null,null,null,null,null,null,null,null,null,null,"TOTAL DOCENTES : ",null,null,null,null,null,null,"ADMINISTRATIVOS : "]
["DOCENTES CON SECCIÓN",{"$f":"COUNTIF(AI19:AI518,\"SI\")","v":0}]
[null,{"$f":"B7+B8","v":0},null,null,null,null,null,null,null,null,"A continuación registre a todo el personal que desempeñe funciones docentes en el Servicio/Nivel educativo: Directivos con o sin aula a cargo, docentes de aula, jefes o jerárquicos"]
["DOCENTES LENGUA ORIGINARIA",{"$f":"SUM(H19:H518)","v":0},null,null,null,null,null,null,null,null,"Documentos fuente: Legajo de personal y CAP de la institución educativa."]
[null,null,3,4,5,6,7,8,9]
[null,null,null,null,null,null,null,null,null,null,null,301.10000000000002,301.2,301.3,302,null,303,304,305,306,null,307,308,309,310,311,312,313,314,315,316,317,318,319,320,321,null,null,null,null,null,null,null,null,null,322.10000000000002,322.2,322.3,323,324,325]
["GESTIÓN",{"$f":"IF(OR('C100'!G24=\"X\",'C100'!J24=\"X\"),1,IF('C100'!M24=\"X\",3,\"\"))","v":""},null,null,null,null,null,null,null,null,"Nº","Apellido Paterno","Apellido Materno","Nombres","Documento de Identidad",null,"Tipo de Personal","Edad","Sexo","¿Cuál es la lengua materna con la  que aprendió a hablar en su niñez?","Además de la lengua materna con la cual aprendió a hablar en su niñez\n¿Habla alguna otra lengua?",null,"Ud. vive en el mismo distrito donde labora\n\nSI - NO","Fuente de\nfinanciamiento","Condición laboral","Modalidad de contrato","Máximo nivel educativo\nalcanzado","Solo si marcó el COD. 01, 02 o 03 en la pregunta 312",null,"Estudios de Postgrado\nen Pedagogía","Años de experiencia laboral","Años de experiencia laboral en este servicio/nivel educativo","Función o cargo","Situación en el cargo directivo","¿ Tiene secciones a cargo ?","Ciclos atendidos\nmarque con una \"X\" según corresponda",null,null,null,null,null,null,null,null,null,"¿Atiende a estudiantes con NEE asociadas a discapacidad?","\n¿Presenta alguna discapa cidad?","Solo si respondió SI en la pregunta 322.2 ¿Cúal es el tipo de discapacidad?","¿Conoce la plataforma tecnológica educativa “PeruEduca”?","¿Está registrado(a) en la plataforma?","Durante el año 2024, ¿Realizó alguna capacitación (curso virtual o programa) en la plataforma PeruEduca? (Solo si respondió “Sí” en la pregunta 324)"]
[null,null,"Exp1","Exp2","Exp3","Exp4","Exp5","Exp6","Exp7",null,null,null,null,null,302.10000000000002,302.2,null,null,null,null,null,null,null,null,null,null,null,"Especialidad Pedagógica\nque ha estudiado","¿En qué tipo de institución obtuvo su formación pedagógica?"]
["302.1 Tipo de documento de Identidad","313. Tipo de inst. donde estudio","Corr","Escala","Gest","Secc","Tipo Pers","Leng","Fmt",null,null,null,null,null,"Tipo","Número",null,null,null,null,"SI - NO","Solo si repondio “SI”",null,null,null,null,null,null,null,null,null,null,null,null,null,"I","II","III","IV","V","VI","VII","VIII","IX","X"]
["01: DNI.","01: IESP (Público)",1,{"$f":"IF(AND(LEFT(Q19,2)=\"01\",LEFT(X19,2)=\"01\",LEFT(Y19,2)=\"01\",E19=1),1,0)","v":0},{"$f":"$B$16","v":""},{"$f":"COUNTIF(AJ19:AS19,\"X\")","v":0},{"$f":"IF(Q19<>\"\",VALUE(LEFT(Q19,2)),0)","v":0},{"$f":"IF(AND($G19=1,UPPER($U19)=\"SI\"),IF($V19<>\"\",IF(AND(VALUE(LEFT($V19,4))>100,VALUE(LEFT($V19,4))<5000),1,0),0),0)","v":0},{"$f":"IF(K19<>\"\",1,0)","v":0},null,{"$f":"IF(C19<=$B$5,C19,\"\")","v":""},null,null,null,null,null,null,null,null,null,null,null,null,null,null,null,null,null,null,null,null,null,null,null,null,null,null,null,null,null,null,null,null,null,null,null,null,null,null,null,null,null,null,"",null,"","","","","","","","","","","","",""]
["02: Carnet Ext.","02: IESP (Privado)",2,0,{"$f":"$B$16","v":""},{"$f":"COUNTIF(AJ20:AS20,\"X\")","v":0},{"$f":"IF(Q20<>\"\",VALUE(LEFT(Q20,2)),0)","v":0},{"$f":"IF(AND($G20=1,UPPER($U20)=\"SI\"),IF($V20<>\"\",IF(AND(VALUE(LEFT($V20,4))>100,VALUE(LEFT($V20,4))<5000),1,0),0),0)","v":0},0,null,{"$f":"IF(C20<=$B$5,C20,\"\")","v":""},null,null,null,null,null,null,null,null,null,null,null,null,null,null,null,null,null,null,null,null,null,null,null,null,null,null,null,null,null,null,null,null,null,null,null,null,null,null,null,null,null,null,"","","","","","","","","","","","","","",""]
["03: Pasaporte","03: Universidad Privada",3,0,"",0,0,0,0,null,{"$f":"IF(C21<=$B$5,C21,\"\")","v":""},null,null,null,null,null,null,null,null,null,null,null,null,null,null,null,null,null,null,null,null,null,null,null,null,null,null,null,null,null,null,null,null,null,null,null,null,null,null,null,null,null,null,"","","","","","","","","","","","","","",""]
[null,"04: Universidad Pública",4,0,"",0,0,0,0,null,"",null,null,null,null,null,null,null,null,null,null,null,null,null,null,null,null,null,null,null,null,null,null,null,null,null,null,null,null,null,null,null,null,null,null,null,null,null,null,null,null,null,null,"","","","","","","","","","","","","","",""]
["303. Tipo de Personal","05: Sin Formación Pedagógica",5,0,"",0,0,0,0,null,""]
["01: Docente",null,6,0,"",0,0,0,0,null,""]
["02: Administrativo","314. Segunda Especialidad",7,0,"",0,0,0,0,null,""]
["03: Aux. de Educación","Utilice las especialidades de la tabla de códigos 313.",8,0,"",0,0,0,0,null,""]
[null,null,9,0,"",0,0,0,0,null,""]
["305. Sexo","315. Estudios de Postgrado en Pedagogía",10,0,"",0,0,0,0,null,""]
["Hombre","Estudios de Maestría y doctorado",11,0,"",0,0,0,0,null,""]
["Mujer","01: Maestria concluida con grado",12,0,"",0,0,0,0,null,""]
[null,"02: Maestria concluida sin grado",13,0,"",0,0,0,0,null,""]
["306. Lengua Materna","03: Maestria en proceso",14,0,"",0,0,0,0,null,""]
["0100: Castellano","04: Doctorado concluido con grado",15,0,"",0,0,0,0,null,""]
["0200: Achuar","05: Doctorado concluido sin grado",16,0,"",0,0,0,0,null,""]
["0300: Aimara","06: Doctorado en proceso",17,0,"",0,0,0,0,null,""]
["0400: Amahuaca","07: Sin Postgrado",18,0,"",0,0,0,0,null,""]
["0500: Arabela",null,19,0,"",0,0,0,0,null,""]
["0600: Asháninka","317. Tiempo de Servicio",20,0,"",0,0,0,0,null,""]
["0610: Asheninka","Solo personal Nombrado.",21,0,"",0,0,0,0,null,""]
["0700: Awajún","Tiempo contado expresado en años desde su fecha de Nombramiento",22,0,"",0,0,0,0,null,""]
["0800: Bora",null,23,0,"",0,0,0,0,null,""]
["0900: Kapanawa","318. Años de Experiencia Laboral",24,0,"",0,0,0,0,null,""]
["1000: Cashinahua","Registre el total de años que tiene como experiencia",25,0,"",0,0,0,0,null,""]
["1100: Kawki","en el Tipo de Personal que se está registrando (Tabla 301.)",26,0,"",0,0,0,0,null,""]
["1200: Chamikuro",null,27,0,"",0,0,0,0,null,""]
["1300: Ese eja","319. Años de experiencia laboral en este servicio/ nivel educativo",28,0,"",0,0,0,0,null,""]
["1400: Harakbut","Anote el N° de años de experiencia prestando servicios",29,0,"",0,0,0,0,null,""]
["1500: Iñapari","en este servicio/nivel educativo por el tipo de personal",30,0,"",0,0,0,0,null,""]
["1600: Ikuitu","que se está registrando (Tabla 301.)",31,0,"",0,0,0,0,null,""]
["1700: Iskonawa",null,32,0,"",0,0,0,0,null,""]
["1800: Jaqaru","319. Escala Magisterial",33,0,"",0,0,0,0,null,""]
["1900: Kakataibo","Complete los datos de Escala Magisterial, según corresponda",34,0,"",0,0,0,0,null,""]
["2000: Kakinte","01: Primera",35,0,"",0,0,0,0,null,""]
["2110: Kandozi-chapra (chapra)","02: Segunda",36,0,"",0,0,0,0,null,""]
["2120: Kandozi-chapra (kandozi)","03: Tercera",37,0,"",0,0,0,0,null,""]
["2200: Kukama-kukamiria","04: Cuarta",38,0,"",0,0,0,0,null,""]
["2300: Madija","05: Quinta",39,0,"",0,0,0,0,null,""]
["2400: Maijiki","06: Sexta",40,0,"",0,0,0,0,null,""]
["2500: Matsés","07: Séptima",41,0,"",0,0,0,0,null,""]
["2600: Matsigenka","08: Octava",42,0,"",0,0,0,0,null,""]
["2700: Munichi","09: Sin Escala",43,0,"",0,0,0,0,null,""]
["2800: Murui-muinani",null,44,0,"",0,0,0,0,null,""]
["2900: Matsigenka-montetokunirira","320. Función o Cargo",45,0,"",0,0,0,0,null,""]
["3000: Nomatsigenga","(Desempeñado a la fecha de reporte)",46,0,"",0,0,0,0,null,""]
["3100: Ocaina","Docentes",47,0,"",0,0,0,0,null,""]
["3200: Omagua","01: (101)-Director General",48,0,"",0,0,0,0,null,""]
["3310: Quechua amazónico (Kichwa)","02: (103)-Sub Director",49,0,"",0,0,0,0,null,""]
["3321: Quechua central (Ancash)","03: (129)-Jefe de departamento",50,0,"",0,0,0,0,null,""]
["3322: Quechua central (Huánuco)","04: (130)-Jefe de área / coordinador",51,0,"",0,0,0,0,null,""]
["3323: Quechua central (Wanka)","05: (124)-Jefe de unidad administrativa",52,0,"",0,0,0,0,null,""]
["3324: Quechua central (Pasco)","06: (123)-Jefe de unidad académica",53,0,"",0,0,0,0,null,""]
["3331: Quechua norteño (Cajamarca)","07: (125)-Jefe de unidad académica inicial",54,0,"",0,0,0,0,null,""]
["3332: Quechua norteño (Inkawasi Kañaris)","08: (126)-Jefe de unidad académica Primaria",55,0,"",0,0,0,0,null,""]
["3341: Quechua sureño (Chanka)","09: (127)-Jefe de unidad académica Secundaria",56,0,"",0,0,0,0,null,""]
["3342: Quechua sureño (Collao)","10: (128)-Jefe de área de formación artística",57,0,"",0,0,0,0,null,""]
["3400: Resígaro","11: (131)-Jefe de taller",58,0,"",0,0,0,0,null,""]
["3500: Secoya","12: (108)-Coordinador de Taller",59,0,"",0,0,0,0,null,""]
["3600: Sharanahua","13: (132)-Secretario General",60,0,"",0,0,0,0,null,""]
["3700: Shawi","14: (137)-Secretario Académico",61,0,"",0,0,0,0,null,""]
["3800: Shipibo-Konibo","15: (111)-Docente por horas",62,0,"",0,0,0,0,null,""]
["3900: Shiwilu","16: (136)-Asistente",63,0,"",0,0,0,0,null,""]
["4000: Taushiro","17: (110)-Coordinador",64,0,"",0,0,0,0,null,""]
["4100: Ticuna","18: (139)-Otro docente o jerarquico",65,{"$f":"IF(AND(LEFT(Q83,2)=\"01\",LEFT(X83,2)=\"01\",LEFT(Y83,2)=\"01\",E83=1),1,0)","v":0},"",0,0,0,{"$f":"IF(K83<>\"\",1,0)","v":0},null,""]
["4200: Urarina",null,66,0,{"$f":"$B$16","v":""},{"$f":"COUNTIF(AJ84:AS84,\"X\")","v":0},{"$f":"IF(Q84<>\"\",VALUE(LEFT(Q84,2)),0)","v":0},{"$f":"IF(AND($G84=1,UPPER($U84)=\"SI\"),IF($V84<>\"\",IF(AND(VALUE(LEFT($V84,4))>100,VALUE(LEFT($V84,4))<5000),1,0),0),0)","v":0},0,null,""]
["4300: Wampis",null,67,0,"",0,0,0,0,null,{"$f":"IF(C85<=$B$5,C85,\"\")","v":""}]
["4400: Yagua","Administrativos",68,0,"",0,0,0,0,null,""]
["4500: Yaminahua","19: (534)-Administrador",69,0,"",0,0,0,0,null,""]
["4600: Yanesha","20: (535)-Contador",70,0,"",0,0,0,0,null,""]
["4700: Yine","21: (501)-Psicólogo",71,0,"",0,0,0,0,null,""]
["4800: Nahua","22: (502)-Trabajo social / Servicio social",72,0,"",0,0,0,0,null,""]
["4900: Lengua de Señas Peruana","23: (503)-Personal de Salud",73,0,"",0,0,0,0,null,""]
["5100: Alemán","24: (537)-Guía intérprete de sordoceguera",74,0,"",0,0,0,0,null,""]
["5200: Inglés","25: (538)-Intérprete de Lengua de Señas Peruana",75,0,"",0,0,0,0,null,""]
["5300: Italiano","26: (539)-Modelo Lingüístio",76,0,"",0,0,0,0,null,""]
["5400: Japonés","27: (506)-Auxiliar de Biblioteca",77,0,"",0,0,0,0,null,""]
["5500: Portugués","28: (507)-Auxiliar de Laboratorio",78,0,"",0,0,0,0,null,""]
["5600: Ruso","29: (508)-Secretaria u Oficinista",79,0,"",0,0,0,0,null,""]
["5700: Francés","30: (536)-Bibliotecario",80,0,"",0,0,0,0,null,""]
["5800: Otra lengua extranjera","31: (512)-Personal de Servicio - Mantenimiento",81,0,"",0,0,0,0,null,""]
["307. Otra Lengua","32: (513)-Personal de Servicio - Cocina",82,0,"",0,0,0,0,null,""]
["De: todos","33: (514)-Personal de Servicio - Limpieza",83,0,"",0,0,0,0,null,""]
[null,"34: (516)-Personal de Servicio - Vigilante",84,0,"",0,0,0,0,null,""]
["308. Fuente de Financiamiento","35: (517)-Personal de servicio - Otro",85,0,"",0,0,0,0,null,""]
["01: Sector Educación","36: (505)-Otro personal profesional",86,0,"",0,0,0,0,null,""]
["02: Otro sector público","37: (518)-Otro personal No profesional",87,0,"",0,0,0,0,null,""]
["03: Municipalidad",null,88,0,"",0,0,0,0,null,""]
["04: Gobierno Regional",null,89,0,"",0,0,0,0,null,""]
["05: APAFA","99: (999)-Auxiliar de Educación",90,0,"",0,0,0,0,null,""]
["06: Otra fuente Privada",null,91,0,"",0,0,0,0,null,""]
[null,null,92,0,"",0,0,0,0,null,""]
["309. Condición Laboral","SI / NO",93,0,"",0,0,0,0,null,""]
["01: Nombrado","SI",94,0,"",0,0,0,0,null,""]
["02: Contratado","NO",95,0,"",0,0,0,0,null,""]
["03: No aplica",null,96,0,"",0,0,0,0,null,""]
[null,null,97,0,"",0,0,0,0,null,""]
["310. Modalidad de Contrato",null,98,0,"",0,0,0,0,null,""]
["Contrato Público",null,99,0,"",0,0,0,0,null,""]
["01: A plazo fijo D. Leg. 728",null,100,0,"",0,0,0,0,null,""]
["02: Locación de Serv. / Honorarios",null,101,0,"",0,0,0,0,null,""]
["03: CAS - D. Leg. 1057",null,102,0,"",0,0,0,0,null,""]
["04: Contrato D. Leg. 276",null,103,0,"",0,0,0,0,null,""]
["05: Contrato Ley 30328","319. Situación en el Cargo Directivo",104,0,"",0,0,0,0,null,""]
["06: Contrato Ley 30512","01: Designado",105,0,"",0,0,0,0,null,""]
["07: Otra modalidad","02: Encargado",106,0,"",0,0,0,0,null,""]
["Contrato Privado",null,107,0,"",0,0,0,0,null,""]
["08: A plazo indefinido (Permanente)",null,108,0,"",0,0,0,0,null,""]
["09: Plazo fijo (Tiempo determinado)",null,109,0,"",0,0,0,0,null,""]
["10: A tiempo parcial (por horas)",null,110,0,"",0,0,0,0,null,""]
["11: Locación de Serv. / Honorarios","322. Destaque o Licencia",111,0,"",0,0,0,0,null,""]
["07: Otra modalidad","01: Cubriendo una licencia",112,0,"",0,0,0,0,null,""]
[null,"02: De otra I.E./DRE/UGEL",113,0,"",0,0,0,0,null,""]
["311. Máximo Nivel Educativo Alcanzado","03: No Aplica",114,0,"",0,0,0,0,null,""]
["01: EP.Concluidos con título",null,115,0,"",0,0,0,0,null,""]
["02: EP.Concluidos sin título",null,116,0,"",0,0,0,0,null,""]
["03: EP.No concluidos","323. Jornada Laboral (Nombramiento / Contrato)",117,0,"",0,0,0,0,null,""]
["04: NP.Concluidos con título","40: 40 horas",118,0,"",0,0,0,0,null,""]
["05: NP.Concluidos sin título","30: 30 horas",119,0,"",0,0,0,0,null,""]
["06: NP.No concluidos","25: 25 horas",120,0,"",0,0,0,0,null,""]
["07: Secundaria","24: 24 horas",121,0,"",0,0,0,0,null,""]
["08: Primaria","23: Menos 24 horas",122,0,"",0,0,0,0,null,""]
[null,null,123,0,"",0,0,0,0,null,""]
["311.1 Nivel Educativo",null,124,0,"",0,0,0,0,null,""]
["01: Técnico","332. Frecuencia",125,0,"",0,0,0,0,null,""]
["02: Profesional Técnico","01: Diario",126,0,"",0,0,0,0,null,""]
["03: Universitario","02: Interdiario",127,0,"",0,0,0,0,null,""]
[null,"03: Semanal",128,0,"",0,0,0,0,null,""]
[null,"04: Quincenal",129,{"$f":"IF(AND(LEFT(Q147,2)=\"01\",LEFT(X147,2)=\"01\",LEFT(Y147,2)=\"01\",E147=1),1,0)","v":0},"",0,0,0,{"$f":"IF(K147<>\"\",1,0)","v":0},null,""]
["312. Especialidad del Título","05: Mensual",130,0,{"$f":"$B$16","v":""},{"$f":"COUNTIF(AJ148:AS148,\"X\")","v":0},{"$f":"IF(Q148<>\"\",VALUE(LEFT(Q148,2)),0)","v":0},{"$f":"IF(AND($G148=1,UPPER($U148)=\"SI\"),IF($V148<>\"\",IF(AND(VALUE(LEFT($V148,4))>100,VALUE(LEFT($V148,4))<5000),1,0),0),0)","v":0},0,null,""]
["01: Educación Inicial",null,131,0,"",0,0,0,0,null,{"$f":"IF(C149<=$B$5,C149,\"\")","v":""}]
["02: Educación Primaria",null,132,0,"",0,0,0,0,null,""]
["03: E.I. Intercultural Bilingüe",null,133,0,"",0,0,0,0,null,""]
["04: E.P. Intercultural Bilingüe","340 ¿Cuál es el tipo de discapacidad?",134,0,"",0,0,0,0,null,""]
["05: Educación Básica Alternativa","01: Auditiva",135,0,"",0,0,0,0,null,""]
["06: Educación Especial","02: Visual",136,0,"",0,0,0,0,null,""]
["07: Educación Física","03: Física o Motora",137,0,"",0,0,0,0,null,""]
["08: Educación Artística","04: Otras",138,0,"",0,0,0,0,null,""]
["09: E.S. Lengua y Literatura",null,139,0,"",0,0,0,0,null,""]
["10: E.S. Comunicación",null,140,0,"",0,0,0,0,null,""]
["11: E.S. Matemática y Física","337.3 Asistencia Técnica",141,0,"",0,0,0,0,null,""]
["12: E.S. Matemática","01: Uso pedagógico de los cuadernos",142,0,"",0,0,0,0,null,""]
["13: E.S. CCSS y Filosofía","02: TICs",143,0,"",0,0,0,0,null,""]
["14: E.S. Ciencias Sociales","03: Inclusión Financiera",144,0,"",0,0,0,0,null,""]
["15: E.S. Ciencias Naturales","04: Prevención de la violencia",145,0,"",0,0,0,0,null,""]
["16: E.S. Ciencia Tecnología y Ambiente","05: Otro",146,0,"",0,0,0,0,null,""]
["17: E.S. Alimentación y Nutrición","06: No recibió asistencia técnica",147,0,"",0,0,0,0,null,""]
["18: E.S. Biología y Química",null,148,0,"",0,0,0,0,null,""]
["19: E.S. Historia y Geografía","339.3 ¿Cuál fue el tipo de estudios en EIB?",149,0,"",0,0,0,0,null,""]
["20: E.S. CC.HH. Sociales","01: Doctorado",150,0,"",0,0,0,0,null,""]
["21: E.S. Idioma Inglés","02: Maestría",151,0,"",0,0,0,0,null,""]
["22: Educación Religiosa","03: Segunda especialidad",152,0,"",0,0,0,0,null,""]
["23: E.S. Educación Familiar","04: Especialización",153,0,"",0,0,0,0,null,""]
["24: E.T. Artes Industriales","05: Actualización",154,0,"",0,0,0,0,null,""]
["25: E.T. Artesanía","06: Otro",155,0,"",0,0,0,0,null,""]
["26: E.T. Agropecuaria",null,156,0,"",0,0,0,0,null,""]
["27: E.T. Construcción en madera","Parroquiales",157,0,"",0,0,0,0,null,""]
["28: E.T. Computación e Informática","05: APAFA",158,0,"",0,0,0,0,null,""]
["29: E.T. Carpintería/Ebanistería","06: Otra fuente Privada",159,0,"",0,0,0,0,null,""]
["30: E.T. Electricidad","01: Sector Educación",160,0,"",0,0,0,0,null,""]
["31: E.T. Electrónica",null,161,0,"",0,0,0,0,null,""]
["32: E.T. Ebanistería","337. Reconocimiento",162,0,"",0,0,0,0,null,""]
["33: E.T. Industria del Vestido","01: Innovación",163,0,"",0,0,0,0,null,""]
["34: E.T. Industria del Vestido Alimentación y Alta Costura","02: Buenas prácticas ",164,0,"",0,0,0,0,null,""]
["35: E.T. en Industria del Vestido y Alta Costura","03: No ha participado",165,0,"",0,0,0,0,null,""]
["36: E.T.Técnica Esp. Ind. del Vestido Ind.Alimentaria y Artes",null,166,0,"",0,0,0,0,null,""]
["37: E.T. Industria Alimentaria",null,167,0,"",0,0,0,0,null,""]
["38: E.T. Mecánica Automotriz",null,168,0,"",0,0,0,0,null,""]
["39: E.T. Mecánica de Producción",null,169,0,"",0,0,0,0,null,""]
["40: E.T. Mecánica de Producción y Soldadura",null,170,0,"",0,0,0,0,null,""]
["41: E.T. Textilería",null,171,0,"",0,0,0,0,null,""]
["42: Otra pedagógica",null,172,0,"",0,0,0,0,null,""]
[null,null,173,0,"",0,0,0,0,null,""]
[null,null,174,0,"",0,0,0,0,null,""]
[null,null,175,0,"",0,0,0,0,null,""]
[null,null,176,0,"",0,0,0,0,null,""]
[null,null,177,0,"",0,0,0,0,null,""]
[null,null,178,0,"",0,0,0,0,null,""]
[null,null,179,0,"",0,0,0,0,null,""]
[null,null,180,0,"",0,0,0,0,null,""]
[null,null,181,0,"",0,0,0,0,null,""]
[null,null,182,0,"",0,0,0,0,null,""]
[null,null,183,0,"",0,0,0,0,null,""]
[null,null,184,0,"",0,0,0,0,null,""]
[null,null,185,0,"",0,0,0,0,null,""]
[null,null,186,0,"",0,0,0,0,null,""]
[null,null,187,0,"",0,0,0,0,null,""]
[null,null,188,0,"",0,0,0,0,null,""]
[null,null,189,0,"",0,0,0,0,null,""]
[null,null,190,0,"",0,0,0,0,null,""]
[null,null,191,0,"",0,0,0,0,null,""]
[null,null,192,0,"",0,0,0,0,null,""]
[null,null,193,{"$f":"IF(AND(LEFT(Q211,2)=\"01\",LEFT(X211,2)=\"01\",LEFT(Y211,2)=\"01\",E211=1),1,0)","v":0},"",0,0,0,{"$f":"IF(K211<>\"\",1,0)","v":0},null,""]
[null,null,194,0,{"$f":"$B$16","v":""},{"$f":"COUNTIF(AJ212:AS212,\"X\")","v":0},{"$f":"IF(Q212<>\"\",VALUE(LEFT(Q212,2)),0)","v":0},{"$f":"IF(AND($G212=1,UPPER($U212)=\"SI\"),IF($V212<>\"\",IF(AND(VALUE(LEFT($V212,4))>100,VALUE(LEFT($V212,4))<5000),1,0),0),0)","v":0},0,null,""]
[null,null,195,0,"",0,0,0,0,null,{"$f":"IF(C213<=$B$5,C213,\"\")","v":""}]
[null,null,196,0,"",0,0,0,0,null,""]
[null,null,197,0,"",0,0,0,0,null,""]
[null,null,198,0,"",0,0,0,0,null,""]
[null,null,199,0,"",0,0,0,0,null,""]
[null,null,200,0,"",0,0,0,0,null,""]
[null,null,201,0,"",0,0,0,0,null,""]
[null,null,202,0,"",0,0,0,0,null,""]
[null,null,203,0,"",0,0,0,0,null,""]
[null,null,204,0,"",0,0,0,0,null,""]
[null,null,205,0,"",0,0,0,0,null,""]
[null,null,206,0,"",0,0,0,0,null,""]
[null,null,207,0,"",0,0,0,0,null,""]
[null,null,208,0,"",0,0,0,0,null,""]
[null,null,209,0,"",0,0,0,0,null,""]
[null,null,210,0,"",0,0,0,0,null,""]
[null,null,211,0,"",0,0,0,0,null,""]
[null,null,212,0,"",0,0,0,0,null,""]
[null,null,213,0,"",0,0,0,0,null,""]
[null,null,214,0,"",0,0,0,0,null,""]
[null,null,215,0,"",0,0,0,0,null,""]
[null,null,216,0,"",0,0,0,0,null,""]
[null,null,217,0,"",0,0,0,0,null,""]
[null,null,218,0,"",0,0,0,0,null,""]
[null,null,219,0,"",0,0,0,0,null,""]
[null,null,220,0,"",0,0,0,0,null,""]
[null,null,221,0,"",0,0,0,0,null,""]
[null,null,222,0,"",0,0,0,0,null,""]
[null,null,223,0,"",0,0,0,0,null,""]
[null,null,224,0,"",0,0,0,0,null,""]
[null,null,225,0,"",0,0,0,0,null,""]
[null,null,226,0,"",0,0,0,0,null,""]
[null,null,227,0,"",0,0,0,0,null,""]
[null,null,228,0,"",0,0,0,0,null,""]
[null,null,229,0,"",0,0,0,0,null,""]
[null,null,230,0,"",0,0,0,0,null,""]
[null,null,231,0,"",0,0,0,0,null,""]
[null,null,232,0,"",0,0,0,0,null,""]
[null,null,233,0,"",0,0,0,0,null,""]
[null,null,234,0,"",0,0,0,0,null,""]
[null,null,235,0,"",0,0,0,0,null,""]
[null,null,236,0,"",0,0,0,0,null,""]
[null,null,237,0,"",0,0,0,0,null,""]
[null,null,238,0,"",0,0,0,0,null,""]
[null,null,239,0,"",0,0,0,0,null,""]
[null,null,240,0,"",0,0,0,0,null,""]
[null,null,241,0,"",0,0,0,0,null,""]
[null,null,242,0,"",0,0,0,0,null,""]
[null,null,243,0,"",0,0,0,0,null,""]
[null,null,244,0,"",0,0,0,0,null,""]
[null,null,245,0,"",0,0,0,0,null,""]
[null,null,246,0,"",0,0,0,0,null,""]
[null,null,247,0,"",0,0,0,0,null,""]
[null,null,248,0,"",0,0,0,0,null,""]
[null,null,249,0,"",0,0,0,0,null,""]
[null,null,250,0,"",0,0,0,0,null,""]
[null,null,251,0,"",0,0,0,0,null,""]
[null,null,252,0,"",0,0,0,0,null,""]
[null,null,253,0,"",0,0,0,0,null,""]
[null,null,254,0,"",0,0,0,0,null,""]
[null,null,255,0,"",0,0,0,0,null,""]
[null,null,256,0,"",0,0,0,0,null,""]
[null,null,257,{"$f":"IF(AND(LEFT(Q275,2)=\"01\",LEFT(X275,2)=\"01\",LEFT(Y275,2)=\"01\",E275=1),1,0)","v":0},"",0,0,0,{"$f":"IF(K275<>\"\",1,0)","v":0},null,""]
[null,null,258,0,{"$f":"$B$16","v":""},{"$f":"COUNTIF(AJ276:AS276,\"X\")","v":0},{"$f":"IF(Q276<>\"\",VALUE(LEFT(Q276,2)),0)","v":0},{"$f":"IF(AND($G276=1,UPPER($U276)=\"SI\"),IF($V276<>\"\",IF(AND(VALUE(LEFT($V276,4))>100,VALUE(LEFT($V276,4))<5000),1,0),0),0)","v":0},0,null,""]
[null,null,259,0,"",0,0,0,0,null,{"$f":"IF(C277<=$B$5,C277,\"\")","v":""}]
[null,null,260,0,"",0,0,0,0,null,""]
[null,null,261,0,"",0,0,0,0,null,""]
[null,null,262,0,"",0,0,0,0,null,""]
[null,null,263,0,"",0,0,0,0,null,""]
[null,null,264,0,"",0,0,0,0,null,""]
[null,null,265,0,"",0,0,0,0,null,""]
[null,null,266,0,"",0,0,0,0,null,""]
[null,null,267,0,"",0,0,0,0,null,""]
[null,null,268,0,"",0,0,0,0,null,""]
[null,null,269,0,"",0,0,0,0,null,""]
[null,null,270,0,"",0,0,0,0,null,""]
[null,null,271,0,"",0,0,0,0,null,""]
[null,null,272,0,"",0,0,0,0,null,""]
[null,null,273,0,"",0,0,0,0,null,""]
[null,null,274,0,"",0,0,0,0,null,""]
[null,null,275,0,"",0,0,0,0,null,""]
[null,null,276,0,"",0,0,0,0,null,""]
[null,null,277,0,"",0,0,0,0,null,""]
[null,null,278,0,"",0,0,0,0,null,""]
[null,null,279,0,"",0,0,0,0,null,""]
[null,null,280,0,"",0,0,0,0,null,""]
[null,null,281,0,"",0,0,0,0,null,""]
[null,null,282,0,"",0,0,0,0,null,""]
[null,null,283,0,"",0,0,0,0,null,""]
[null,null,284,0,"",0,0,0,0,null,""]
[null,null,285,0,"",0,0,0,0,null,""]
[null,null,286,0,"",0,0,0,0,null,""]
[null,null,287,0,"",0,0,0,0,null,""]
[null,null,288,0,"",0,0,0,0,null,""]
[null,null,289,0,"",0,0,0,0,null,""]
[null,null,290,0,"",0,0,0,0,null,""]
[null,null,291,0,"",0,0,0,0,null,""]
[null,null,292,0,"",0,0,0,0,null,""]
[null,null,293,0,"",0,0,0,0,null,""]
[null,null,294,0,"",0,0,0,0,null,""]
[null,null,295,0,"",0,0,0,0,null,""]
[null,null,296,0,"",0,0,0,0,null,""]
[null,null,297,0,"",0,0,0,0,null,""]
[null,null,298,0,"",0,0,0,0,null,""]
[null,null,299,0,"",0,0,0,0,null,""]
[null,null,300,0,"",0,0,0,0,null,""]
[null,null,301,0,"",0,0,0,0,null,""]
[null,null,302,0,"",0,0,0,0,null,""]
[null,null,303,0,"",0,0,0,0,null,""]
[null,null,304,0,"",0,0,0,0,null,""]
[null,null,305,0,"",0,0,0,0,null,""]
[null,null,306,0,"",0,0,0,0,null,""]
[null,null,307,0,"",0,0,0,0,null,""]
[null,null,308,0,"",0,0,0,0,null,""]
[null,null,309,0,"",0,0,0,0,null,""]
[null,null,310,0,"",0,0,0,0,null,""]
[null,null,311,0,"",0,0,0,0,null,""]
[null,null,312,0,"",0,0,0,0,null,""]
[null,null,313,0,"",0,0,0,0,null,""]
[null,null,314,0,"",0,0,0,0,null,""]
[null,null,315,0,"",0,0,0,0,null,""]
[null,null,316,0,"",0,0,0,0,null,""]
[null,null,317,0,"",0,0,0,0,null,""]
[null,null,318,0,"",0,0,0,0,null,""]
[null,null,319,0,"",0,0,0,0,null,""]
[null,null,320,0,"",0,0,0,0,null,""]
[null,null,321,{"$f":"IF(AND(LEFT(Q339,2)=\"01\",LEFT(X339,2)=\"01\",LEFT(Y339,2)=\"01\",E339=1),1,0)","v":0},"",0,0,0,{"$f":"IF(K339<>\"\",1,0)","v":0},null,""]
[null,null,322,0,{"$f":"$B$16","v":""},{"$f":"COUNTIF(AJ340:AS340,\"X\")","v":0},{"$f":"IF(Q340<>\"\",VALUE(LEFT(Q340,2)),0)","v":0},{"$f":"IF(AND($G340=1,UPPER($U340)=\"SI\"),IF($V340<>\"\",IF(AND(VALUE(LEFT($V340,4))>100,VALUE(LEFT($V340,4))<5000),1,0),0),0)","v":0},0,null,""]
[null,null,323,0,"",0,0,0,0,null,{"$f":"IF(C341<=$B$5,C341,\"\")","v":""}]
[null,null,324,0,"",0,0,0,0,null,""]
[null,null,325,0,"",0,0,0,0,null,""]
[null,null,326,0,"",0,0,0,0,null,""]
[null,null,327,0,"",0,0,0,0,null,""]
[null,null,328,0,"",0,0,0,0,null,""]
[null,null,329,0,"",0,0,0,0,null,""]
[null,null,330,0,"",0,0,0,0,null,""]
[null,null,331,0,"",0,0,0,0,null,""]
[null,null,332,0,"",0,0,0,0,null,""]
[null,null,333,0,"",0,0,0,0,null,""]
[null,null,334,0,"",0,0,0,0,null,""]
[null,null,335,0,"",0,0,0,0,null,""]
[null,null,336,0,"",0,0,0,0,null,""]
[null,null,337,0,"",0,0,0,0,null,""]
[null,null,338,0,"",0,0,0,0,null,""]
[null,null,339,0,"",0,0,0,0,null,""]
[null,null,340,0,"",0,0,0,0,null,""]
[null,null,341,0,"",0,0,0,0,null,""]
[null,null,342,0,"",0,0,0,0,null,""]
[null,null,343,0,"",0,0,0,0,null,""]
[null,null,344,0,"",0,0,0,0,null,""]
[null,null,345,0,"",0,0,0,0,null,""]
[null,null,346,0,"",0,0,0,0,null,""]
[null,null,347,0,"",0,0,0,0,null,""]
[null,null,348,0,"",0,0,0,0,null,""]
[null,null,349,0,"",0,0,0,0,null,""]
[null,null,350,0,"",0,0,0,0,null,""]
[null,null,351,0,"",0,0,0,0,null,""]
[null,null,352,0,"",0,0,0,0,null,""]
[null,null,353,0,"",0,0,0,0,null,""]
[null,null,354,0,"",0,0,0,0,null,""]
[null,null,355,0,"",0,0,0,0,null,""]
[null,null,356,0,"",0,0,0,0,null,""]
[null,null,357,0,"",0,0,0,0,null,""]
[null,null,358,0,"",0,0,0,0,null,""]
[null,null,359,0,"",0,0,0,0,null,""]
[null,null,360,0,"",0,0,0,0,null,""]
[null,null,361,0,"",0,0,0,0,null,""]
[null,null,362,0,"",0,0,0,0,null,""]
[null,null,363,0,"",0,0,0,0,null,""]
[null,null,364,0,"",0,0,0,0,null,""]
[null,null,365,0,"",0,0,0,0,null,""]
[null,null,366,0,"",0,0,0,0,null,""]
[null,null,367,0,"",0,0,0,0,null,""]
[null,null,368,0,"",0,0,0,0,null,""]
[null,null,369,0,"",0,0,0,0,null,""]
[null,null,370,0,"",0,0,0,0,null,""]
[null,null,371,0,"",0,0,0,0,null,""]
[null,null,372,0,"",0,0,0,0,null,""]
[null,null,373,0,"",0,0,0,0,null,""]
[null,null,374,0,"",0,0,0,0,null,""]
[null,null,375,0,"",0,0,0,0,null,""]
[null,null,376,0,"",0,0,0,0,null,""]
[null,null,377,0,"",0,0,0,0,null,""]
[null,null,378,0,"",0,0,0,0,null,""]
[null,null,379,0,"",0,0,0,0,null,""]
[null,null,380,0,"",0,0,0,0,null,""]
[null,null,381,0,"",0,0,0,0,null,""]
[null,null,382,0,"",0,0,0,0,null,""]
[null,null,383,0,"",0,0,0,0,null,""]
[null,null,384,0,"",0,0,0,0,null,""]
[null,null,385,{"$f":"IF(AND(LEFT(Q403,2)=\"01\",LEFT(X403,2)=\"01\",LEFT(Y403,2)=\"01\",E403=1),1,0)","v":0},"",0,0,0,{"$f":"IF(K403<>\"\",1,0)","v":0},null,""]
[null,null,386,0,{"$f":"$B$16","v":""},{"$f":"COUNTIF(AJ404:AS404,\"X\")","v":0},{"$f":"IF(Q404<>\"\",VALUE(LEFT(Q404,2)),0)","v":0},{"$f":"IF(AND($G404=1,UPPER($U404)=\"SI\"),IF($V404<>\"\",IF(AND(VALUE(LEFT($V404,4))>100,VALUE(LEFT($V404,4))<5000),1,0),0),0)","v":0},0,null,""]
[null,null,387,0,"",0,0,0,0,null,{"$f":"IF(C405<=$B$5,C405,\"\")","v":""}]
[null,null,388,0,"",0,0,0,0,null,""]
[null,null,389,0,"",0,0,0,0,null,""]
[null,null,390,0,"",0,0,0,0,null,""]
[null,null,391,0,"",0,0,0,0,null,""]
[null,null,392,0,"",0,0,0,0,null,""]
[null,null,393,0,"",0,0,0,0,null,""]
[null,null,394,0,"",0,0,0,0,null,""]
[null,null,395,0,"",0,0,0,0,null,""]
[null,null,396,0,"",0,0,0,0,null,""]
[null,null,397,0,"",0,0,0,0,null,""]
[null,null,398,0,"",0,0,0,0,null,""]
[null,null,399,0,"",0,0,0,0,null,""]
[null,null,400,0,"",0,0,0,0,null,""]
[null,null,401,0,"",0,0,0,0,null,""]
[null,null,402,0,"",0,0,0,0,null,""]
[null,null,403,0,"",0,0,0,0,null,""]
[null,null,404,0,"",0,0,0,0,null,""]
[null,null,405,0,"",0,0,0,0,null,""]
[null,null,406,0,"",0,0,0,0,null,""]
[null,null,407,0,"",0,0,0,0,null,""]
[null,null,408,0,"",0,0,0,0,null,""]
[null,null,409,0,"",0,0,0,0,null,""]
[null,null,410,0,"",0,0,0,0,null,""]
[null,null,411,0,"",0,0,0,0,null,""]
[null,null,412,0,"",0,0,0,0,null,""]
[null,null,413,0,"",0,0,0,0,null,""]
[null,null,414,0,"",0,0,0,0,null,""]
[null,null,415,0,"",0,0,0,0,null,""]
[null,null,416,0,"",0,0,0,0,null,""]
[null,null,417,0,"",0,0,0,0,null,""]
[null,null,418,0,"",0,0,0,0,null,""]
[null,null,419,0,"",0,0,0,0,null,""]
[null,null,420,0,"",0,0,0,0,null,""]
[null,null,421,0,"",0,0,0,0,null,""]
[null,null,422,0,"",0,0,0,0,null,""]
[null,null,423,0,"",0,0,0,0,null,""]
[null,null,424,0,"",0,0,0,0,null,""]
[null,null,425,0,"",0,0,0,0,null,""]
[null,null,426,0,"",0,0,0,0,null,""]
[null,null,427,0,"",0,0,0,0,null,""]
[null,null,428,0,"",0,0,0,0,null,""]
[null,null,429,0,"",0,0,0,0,null,""]
[null,null,430,0,"",0,0,0,0,null,""]
[null,null,431,0,"",0,0,0,0,null,""]
[null,null,432,0,"",0,0,0,0,null,""]
[null,null,433,0,"",0,0,0,0,null,""]
[null,null,434,0,"",0,0,0,0,null,""]
[null,null,435,0,"",0,0,0,0,null,""]
[null,null,436,0,"",0,0,0,0,null,""]
[null,null,437,0,"",0,0,0,0,null,""]
[null,null,438,0,"",0,0,0,0,null,""]
[null,null,439,0,"",0,0,0,0,null,""]
[null,null,440,0,"",0,0,0,0,null,""]
[null,null,441,0,"",0,0,0,0,null,""]
[null,null,442,0,"",0,0,0,0,null,""]
[null,null,443,0,"",0,0,0,0,null,""]
[null,null,444,0,"",0,0,0,0,null,""]
[null,null,445,0,"",0,0,0,0,null,""]
[null,null,446,0,"",0,0,0,0,null,""]
[null,null,447,0,"",0,0,0,0,null,""]
[null,null,448,0,"",0,0,0,0,null,""]
[null,null,449,{"$f":"IF(AND(LEFT(Q467,2)=\"01\",LEFT(X467,2)=\"01\",LEFT(Y467,2)=\"01\",E467=1),1,0)","v":0},"",0,0,0,{"$f":"IF(K467<>\"\",1,0)","v":0},null,""]
[null,null,450,0,{"$f":"$B$16","v":""},{"$f":"COUNTIF(AJ468:AS468,\"X\")","v":0},{"$f":"IF(Q468<>\"\",VALUE(LEFT(Q468,2)),0)","v":0},{"$f":"IF(AND($G468=1,UPPER($U468)=\"SI\"),IF($V468<>\"\",IF(AND(VALUE(LEFT($V468,4))>100,VALUE(LEFT($V468,4))<5000),1,0),0),0)","v":0},0,null,""]
[null,null,451,0,"",0,0,0,0,null,{"$f":"IF(C469<=$B$5,C469,\"\")","v":""}]
[null,null,452,0,"",0,0,0,0,null,""]
[null,null,453,0,"",0,0,0,0,null,""]
[null,null,454,0,"",0,0,0,0,null,""]
[null,null,455,0,"",0,0,0,0,null,""]
[null,null,456,0,"",0,0,0,0,null,""]
[null,null,457,0,"",0,0,0,0,null,""]
[null,null,458,0,"",0,0,0,0,null,""]
[null,null,459,0,"",0,0,0,0,null,""]
[null,null,460,0,"",0,0,0,0,null,""]
[null,null,461,0,"",0,0,0,0,null,""]
[null,null,462,0,"",0,0,0,0,null,""]
[null,null,463,0,"",0,0,0,0,null,""]
[null,null,464,0,"",0,0,0,0,null,""]
[null,null,465,0,"",0,0,0,0,null,""]
[null,null,466,0,"",0,0,0,0,null,""]
[null,null,467,0,"",0,0,0,0,null,""]
[null,null,468,0,"",0,0,0,0,null,""]
[null,null,469,0,"",0,0,0,0,null,""]
[null,null,470,0,"",0,0,0,0,null,""]
[null,null,471,0,"",0,0,0,0,null,""]
[null,null,472,0,"",0,0,0,0,null,""]
[null,null,473,0,"",0,0,0,0,null,""]
[null,null,474,0,"",0,0,0,0,null,""]
[null,null,475,0,"",0,0,0,0,null,""]
[null,null,476,0,"",0,0,0,0,null,""]
[null,null,477,0,"",0,0,0,0,null,""]
[null,null,478,0,"",0,0,0,0,null,""]
[null,null,479,0,"",0,0,0,0,null,""]
[null,null,480,0,"",0,0,0,0,null,""]
[null,null,481,0,"",0,0,0,0,null,""]
[null,null,482,0,"",0,0,0,0,null,""]
[null,null,483,0,"",0,0,0,0,null,""]
[null,null,484,0,"",0,0,0,0,null,""]
[null,null,485,0,"",0,0,0,0,null,""]
[null,null,486,0,"",0,0,0,0,null,""]
[null,null,487,0,"",0,0,0,0,null,""]
[null,null,488,0,"",0,0,0,0,null,""]
[null,null,489,0,"",0,0,0,0,null,""]
[null,null,490,0,"",0,0,0,0,null,""]
[null,null,491,0,"",0,0,0,0,null,""]
[null,null,492,0,"",0,0,0,0,null,""]
[null,null,493,0,"",0,0,0,0,null,""]
[null,null,494,0,"",0,0,0,0,null,""]
[null,null,495,0,"",0,0,0,0,null,""]
[null,null,496,0,"",0,0,0,0,null,""]
[null,null,497,0,"",0,0,0,0,null,""]
[null,null,498,0,"",0,0,0,0,null,""]
[null,null,499,0,"",0,0,0,0,null,""]
[null,null,500,0,"",0,0,0,0,null,""]
[null,null,null,null,null,null,null,null,null,null,null,null,null,null,null,"","","","","","","",null,"","","","","","","","","","","","","","","","","","","","","",""]
[null,null,null,null,null,null,null,null,null,null,"…","…","…","…","…","…","…","…","…","…","…","…","…","…","…","…","…","…","…","…","…","…","…","…","…","…","…","…","…","…","…","…","…","…","…","…","…","…",null,null,"…"]

{"sheet":"C326","index":4,"n_rows":121,"n_cols":31,"rows_kept":121,"cut":false,"hidden":true,"merged":[[1,5,1,16],[2,5,2,16],[6,5,6,16],[16,8,16,10],[17,12,18,12],[17,5,18,5],[17,6,18,6],[17,7,18,7],[17,8,17,10]]}
[]
[null,null,null,null,null,"CENSO EDUCATIVO 2025"]
[null,null,null,null,null,"MATRÍCULA, DOCENTES Y RECURSOS"]
[]
[]
[]
[null,null,null,null,null,"DOCENTES QUE DOMINAN LENGUA ORIGINARIA (Solo II.EE. Públicas)"]
[]
["GESTIÓN",null,null,null,null,null,"326. SEGÚN LO ANOTADO EN LA PREGUNTA 307, ¿CUENTA CON UN DOCENTE QUE DOMINE UNA LENGUA ORIGINARIA?"]
[null,null,null,null,null,null,"Hacer click en el botón [Verificar] para revisar los docentes que dominan una lengua originaria"]
[1]
[null,null,null,null,null,null,null,"Sí   ",null,null,null,null,"¿Cuántos?"]
[]
[null,null,null,null,null,null,null,"No  ",null,null,null,null,"Pase a la sección ANOTACIONES COMPLEMENTARIAS."]
[]
[null,2,3,4]
[null,null,null,null,null,null,null,null,326.10000000000002,null,null,326.2,326.3,326.39999999999998,326.5,326.60000000000002,326.7]
[null,null,null,null,null,"Nº","Nº de fila registrado en la pregunta 307","Documento de Identidad","Conocimiento de\nlengua originaria",null,null,"¿Cuenta con estudios en Educación Intercultural Bilingüe?","Solo si respondió SÍ  en la pregunta 331.2 ¿Cuál fue el tipo de estudios en EIB?","¿Ha recibido\ncapacitación en EIB?","¿El docente enseña\nen lengua originaria?","¿El material recibido coincide con la lengua que enseña?","¿En la actualidad el Docente se encuentra en el Registro de Docentes Bilingües?"]
["330.3 ¿Cuál fue el tipo de estudios en EIB?","Corr","Gest","Fmt",null,null,null,null,"Habla","Lee","Escribe"," Sí - No",null," Sí - No"," Sí - No"," Sí - No"," Sí - No"]
["01: Doctorado",1,{"$f":"$A$11","v":1},{"$f":"IF(F20<>\"\",1,0)","v":0},null,{"$f":"IF(B20<=$N$12,B20,\"\")","v":""},null,null,"","","","","","","","","","","","","","","","","","","","","","",""]
["02: Maestría",{"$f":"B20+1","v":2},{"$f":"$A$11","v":1},{"$f":"IF(F21<>\"\",1,0)","v":0},null,{"$f":"IF(B21<=$N$12,B21,\"\")","v":""},null,null,"","","","","","","","","","","","","","","","","","","","","","",""]
["03: Segunda especialidad",{"$f":"B21+1","v":3},1,{"$f":"IF(F22<>\"\",1,0)","v":0},null,"",null,null,"","","","","","","","","","","","","","","","","","","","","","",""]
["04: Especialización",4,1,0,null,"",null,null,"","","","","","","","","","","","","","","","","","","","","","",""]
["05: Actualización",5,1,0,null,"",null,null,"","","","","","","","","","","","","","","","","","","","","","",""]
["06: Otro",6,1,0,null,"",null,null,"","","","","","","","","","","","","","","","","","","","","","",""]
[null,7,1,0,null,"",null,null,"","","","","","","","","","","","","","","","","","","","","","",""]
["Condición",8,1,0,null,"",null,null,"","","","","","","","","","","","","","","","","","","","","","",""]
["SI",9,1,0,null,"",null,null,"","","","","","","","","","","","","","","","","","","","","","",""]
["NO",10,1,0,null,"",null,null,"","","","","","","","","","","","","","","","","","","","","","",""]
[null,11,1,0,null,"",null,null,"","","","","","","","","","","","","","","","","","","","","","",""]
[null,12,1,0,null,"",null,null,"","","","","","","","","","","","","","","","","","","","","","",""]
[null,13,1,0,null,"",null,null,"","","","","","","","","","","","","","","","","","","","","","",""]
[null,14,1,0,null,"",null,null,"","","","","","","","","","","","","","","","","","","","","","",""]
[null,15,1,0,null,"",null,null,"","","","","","","","","","","","","","","","","","","","","","",""]
[null,16,1,0,null,"",null,null,"","","","","","","","","","","","","","","","","","","","","","",""]
[null,17,1,0,null,"",null,null,"","","","","","","","","","","","","","","","","","","","","","",""]
[null,18,1,0,null,"",null,null,"","","","","","","","","","","","","","","","","","","","","","",""]
[null,19,1,0,null,"",null,null,"","","","","","","","","","","","","","","","","","","","","","",""]
[null,20,1,0,null,"",null,null,"","","","","","","","","","","","","","","","","","","","","","",""]
[null,21,1,0,null,"",null,null,"","","","","","","","","","","","","","","","","","","","","","",""]
[null,22,1,0,null,"",null,null,"","","","","","","","","","","","","","","","","","","","","","",""]
[null,23,1,0,null,"",null,null,"","","","","","","","","","","","","","","","","","","","","","",""]
[null,24,1,0,null,"",null,null,"","","","","","","","","","","","","","","","","","","","","","",""]
[null,25,1,0,null,"",null,null,"","","","","","","","","","","","","","","","","","","","","","",""]
[null,26,1,0,null,"",null,null,"","","","","","","","","","","","","","","","","","","","","","",""]
[null,27,1,0,null,"",null,null,"","","","","","","","","","","","","","","","","","","","","","",""]
[null,28,1,0,null,"",null,null,"","","","","","","","","","","","","","","","","","","","","","",""]
[null,29,1,0,null,"",null,null,"","","","","","","","","","","","","","","","","","","","","","",""]
[null,30,1,0,null,"",null,null,"","","","","","","","","","","","","","","","","","","","","","",""]
[null,31,1,0,null,"",null,null,"","","","","","","","","","","","","","","","","","","","","","",""]
[null,32,1,0,null,"",null,null,"","","","","","","","","","","","","","","","","","","","","","",""]
[null,33,1,0,null,"",null,null,"","","","","","","","","","","","","","","","","","","","","","",""]
[null,34,1,0,null,"",null,null,"","","","","","","","","","","","","","","","","","","","","","",""]
[null,35,1,0,null,"",null,null,"","","","","","","","","","","","","","","","","","","","","","",""]
[null,36,1,0,null,"",null,null,"","","","","","","","","","","","","","","","","","","","","","",""]
[null,37,1,0,null,"",null,null,"","","","","","","","","","","","","","","","","","","","","","",""]
[null,38,1,0,null,"",null,null,"","","","","","","","","","","","","","","","","","","","","","",""]
[null,39,1,0,null,"",null,null,"","","","","","","","","","","","","","","","","","","","","","",""]
[null,40,1,0,null,"",null,null,"","","","","","","","","","","","","","","","","","","","","","",""]
[null,41,1,0,null,"",null,null,"","","","","","","","","","","","","","","","","","","","","","",""]
[null,42,1,0,null,"",null,null,"","","","","","","","","","","","","","","","","","","","","","",""]
[null,43,1,0,null,"",null,null,"","","","","","","","","","","","","","","","","","","","","","",""]
[null,44,1,0,null,"",null,null,"","","","","","","","","","","","","","","","","","","","","","",""]
[null,45,1,0,null,"",null,null,"","","","","","","","","","","","","","","","","","","","","","",""]
[null,46,1,0,null,"",null,null,"","","","","","","","","","","","","","","","","","","","","","",""]
[null,47,1,0,null,"",null,null,"","","","","","","","","","","","","","","","","","","","","","",""]
[null,48,1,0,null,"",null,null,"","","","","","","","","","","","","","","","","","","","","","",""]
[null,49,1,0,null,"",null,null,"","","","","","","","","","","","","","","","","","","","","","",""]
[null,50,1,0,null,"",null,null,"","","","","","","","","","","","","","","","","","","","","","",""]
[null,51,1,0,null,"",null,null,"","","","","","","","","","","","","","","","","","","","","","",""]
[null,52,1,0,null,"",null,null,"","","","","","","","","","","","","","","","","","","","","","",""]
[null,53,1,0,null,"",null,null,"","","","","","","","","","","","","","","","","","","","","","",""]
[null,54,1,0,null,"",null,null,"","","","","","","","","","","","","","","","","","","","","","",""]
[null,55,1,0,null,"",null,null,"","","","","","","","","","","","","","","","","","","","","","",""]
[null,56,1,0,null,"",null,null,"","","","","","","","","","","","","","","","","","","","","","",""]
[null,57,1,0,null,"",null,null,"","","","","","","","","","","","","","","","","","","","","","",""]
[null,58,1,0,null,"",null,null,"","","","","","","","","","","","","","","","","","","","","","",""]
[null,59,1,0,null,"",null,null,"","","","","","","","","","","","","","","","","","","","","","",""]
[null,60,1,0,null,"",null,null,"","","","","","","","","","","","","","","","","","","","","","",""]
[null,61,1,0,null,"",null,null,"","","","","","","","","","","","","","","","","","","","","","",""]
[null,62,1,0,null,"",null,null,"","","","","","","","","","","","","","","","","","","","","","",""]
[null,63,1,0,null,"",null,null,"","","","","","","","","","","","","","","","","","","","","","",""]
[null,64,1,0,null,"",null,null,"","","","","","","","","","","","","","","","","","","","","","",""]
[null,65,1,0,null,"",null,null,"","","","","","","","","","","","","","","","","","","","","","",""]
[null,66,{"$f":"$A$11","v":1},0,null,{"$f":"IF(B85<=$N$12,B85,\"\")","v":""},null,null,"","","","","","","","","","","","","","","","","","","","","","",""]
[null,{"$f":"B85+1","v":67},1,{"$f":"IF(F86<>\"\",1,0)","v":0},null,"",null,null,"","","","","","","","","","","","","","","","","","","","","","",""]
[null,68,1,0,null,"",null,null,"","","","","","","","","","","","","","","","","","","","","","",""]
[null,69,1,0,null,"",null,null,"","","","","","","","","","","","","","","","","","","","","","",""]
[null,70,1,0,null,"",null,null,"","","","","","","","","","","","","","","","","","","","","","",""]
[null,71,1,0,null,"",null,null,"","","","","","","","","","","","","","","","","","","","","","",""]
[null,72,1,0,null,"",null,null,"","","","","","","","","","","","","","","","","","","","","","",""]
[null,73,1,0,null,"",null,null,"","","","","","","","","","","","","","","","","","","","","","",""]
[null,74,1,0,null,"",null,null,"","","","","","","","","","","","","","","","","","","","","","",""]
[null,75,1,0,null,"",null,null,"","","","","","","","","","","","","","","","","","","","","","",""]
[null,76,1,0,null,"",null,null,"","","","","","","","","","","","","","","","","","","","","","",""]
[null,77,1,0,null,"",null,null,"","","","","","","","","","","","","","","","","","","","","","",""]
[null,78,1,0,null,"",null,null,"","","","","","","","","","","","","","","","","","","","","","",""]
[null,79,1,0,null,"",null,null,"","","","","","","","","","","","","","","","","","","","","","",""]
[null,80,1,0,null,"",null,null,"","","","","","","","","","","","","","","","","","","","","","",""]
[null,81,1,0,null,"",null,null,"","","","","","","","",""]
[null,82,1,0,null,"",null,null,"","","","","","","","",""]
[null,83,1,0,null,"",null,null,"","","","","","","","",""]
[null,84,1,0,null,"",null,null,"","","","","","","","",""]
[null,85,1,0,null,"",null,null,"","","","","","","","",""]
[null,86,1,0,null,"",null,null,"","","","","","","","",""]
[null,87,1,0,null,"",null,null,"","","","","","","","",""]
[null,88,1,0,null,"",null,null,"","","","","","","","",""]
[null,89,1,0,null,"",null,null,"","","","","","","","",""]
[null,90,1,0,null,"",null,null,"","","","","","","","",""]
[null,91,1,0,null,"",null,null,"","","","","","","","",""]
[null,92,1,0,null,"",null,null,"","","","","","","","",""]
[null,93,1,0,null,"",null,null,"","","","","","","","",""]
[null,94,1,0,null,"",null,null,"","","","","","","","",""]
[null,95,1,0,null,"",null,null,"","","","","","","","","","","","","","","","","","","","","","",""]
[null,96,1,0,null,"",null,null,"","","","","","","","","","","","","","","","","","","","","","",""]
[null,97,1,0,null,"",null,null,"","","","","","","","","","","","","","","","","","","","","","",""]
[null,98,1,0,null,"",null,null,"","","","","","","","","","","","","","","","","","","","","","",""]
[null,99,1,0,null,"",null,null,"","","","","","","","","","","","","","","","","","","","","","",""]
[null,100,1,0,null,"",null,null,"","","","","","","","","","","","","","","","","","","","","","",""]
[null,null,null,null,null,null,null,""]
[null,null,null,null,null,"…","…","…","…","…","…","…","…","…","…","…","…"]

{"sheet":"C400","index":5,"n_rows":47,"n_cols":19,"rows_kept":47,"cut":false,"hidden":true,"merged":[[1,5,1,16],[2,5,2,16],[15,14,15,18],[35,14,35,18]]}
[]
[null,null,null,null,null,"CENSO EDUCATIVO 2025"]
[null,null,null,null,null,"MATRÍCULA, DOCENTES Y RECURSOS"]
[]
[]
[]
[null,"327. ÁREA DE PSICOLOGÍA"]
[null,"327.1 DURANTE EL PRESENTE AÑO, ¿SE CUENTA CON ALGÚN PROFESIONAL DE PSICOLOGÍA",null,null,null,null,null,null,null,null,"327.2. ¿A TRAVÉS DE QUÉ MECANISMO SE INCORPORÓ AL PROFESIONAL DE PSICOLOGÍA?"]
[null,null,"INCORPORADO AL INSTITUTO O ESCUELA O PROGRAMA EDUCATIVO?",null,null,null,null,null,null,null,null,"Marque con una “X”, una opción"]
[]
[null,null,null,null,null,null,null,null,null,null,null,null,null,"Contratación a través de UGEL (pe. JEC, Convivencia Escolar, etc.)"]
[null,null,"Sí",null,null,"No",null,null,null,"Pase a la Sección 400",null,null,null,"Contratación a través de UGEL (por identificación de necesidad)"]
[null,null,null,null,null,null,null,null,null,null,null,null,null,"Prácticas profesionales"]
[null,null,null,null,null,null,null,null,null,null,null,null,null,"Servicio Rural y Urbano Marginal de Salud (Serums)"]
[null,null,null,null,null,null,null,null,null,null,null,null,null,"Pasantías"]
[null,null,null,null,null,null,null,null,null,null,null,null,null,"Otro"]
[]
[]
[null,"400. FORTALECIMIENTO DE LA GESTIÓN"]
[]
[null,"401. ¿CUÁLES SON LAS DOS PRINCIPALES TEMÁTICAS QUE CONSIDERA USTED QUE",null,null,null,null,null,null,null,null,"403. ¿SE HA INCORPORADO ALGÚN OBJETIVO O ACCIÓN REFERIDA A LA PREVENCIÓN,"]
[null,null,"EL PERSONAL ADMINISTRATIVO DE ESTE INSTITUTO O ESCUELA PODRÍA SER  CAPACITADO?",null,null,null,null,null,null,null,null,"PROMOCIÓN Y ATENCIÓN DE LA SALUD (FÍSICA, MENTAL O EMOCIONAL)"]
[null,null,"Marque con una “X”, solamente dos opciones",null,null,null,null,null,null,null,null,"O ALGUNA OTRA SIMILAR DIRIGIDA A PERSONAL DOCENTE, DIRECTIVO, JERÁRQUICO"]
[null,null,null,null,null,null,null,null,null,null,null,"O ADMINISTRATIVO EN LOS INSTRUMENTOS DE GESTIÓN DEL DEL INSTITUTO O ESCUELA?"]
[null,null,{"$f":"COUNTIF(D25:D32,\"X\")","v":0},null,"Seguridad de control de accesos y de control interno de la IE."]
[null,null,null,null,"Gestión de limpieza y/o mantenimiento de la IE",null,null,null,null,null,null,"Sí",null,null,null,"No",null,null,"Pase a la pregunta 405"]
[null,null,null,null,"Manejo de habilidades interpersonales (atención de usuarios)."]
[null,null,null,null,"Técnicas de archivo y despacho de documentos."]
[null,null,null,null,"Manejo de los sistemas informáticos del Minedu.",null,null,null,null,null,"404. ¿A TRAVÉS DE QUÉ INSTRUMENTOS DE GESTIÓN SE HA INCORPORADO?"]
[null,null,null,null,"Administración y control de recursos propios (financieros).",null,null,null,null,null,null,"Marque con una “X”, una opción"]
[null,null,null,null,"Manejo de herramientas TIC y ofimática."]
[null,null,null,null,"La gestión de riesgo de desastres priorizando la prevención y reducción",null,null,null,null,null,null,null,null,"Proyecto Educativo Institucional (PEI)"]
[null,null,null,null,null,null,null,null,null,null,null,null,null,"Plan Anual de Trabajo (PAT)"]
[null,"402.  CON RESPECTO A LAS LABORES DEL PERSONAL ADMINISTRATIVO DURANTE EL",null,null,null,null,null,null,null,null,null,null,null,"Proyecto Curricular de la IE (PCI)"]
[null,null,"AÑO 2023, ¿EN QUÉ ÁMBITO(S) IDENTIFICÓ MAYOR CARGA DE ACTIVIDADES",null,null,null,null,null,null,null,null,null,null,"Reglamento Interno (RI)"]
[null,null,"OPERATIVAS ADMINISTRATIVAS?",null,null,null,null,null,null,null,null,null,null,"Otro"]
[null,null,"Marque con una “X”, hasta dos opciones"]
[null,null,null,null,null,null,null,null,null,null,"405. ¿HA RECIBIDO ASISTENCIA Y ORIENTACIÓN PARA LA ATENCIÓN EDUCATIVA"]
[null,null,{"$f":"COUNTIF(D39:D44,\"X\")","v":0},null,"Gestión de recursos financieros, bienes, servicios e infraestructura",null,null,null,null,null,null,"EDUCATIVA DE ESTUDIANTES CON DISCAPACIDAD DE PARTE DEL EQUIPO DE"]
[null,null,null,null,"Gestión de información de la IE (registro en sistemas administrativos)",null,null,null,null,null,null,"SERVICIO DE APOYO EDUCATIVO VIRTUAL (SAEV)?"]
[null,null,null,null,"Gestión y seguimiento del uso de los recursos educativos."]
[null,null,null,null,"Limpieza y mantenimiento",null,null,null,null,null,null,"Sí",null,null,null,"No"]
[null,null,null,null,"La gestión de riesgo de desastres priorizando la prevención y reducción"]
[null,null,null,null,"Vigilancia y guardianía",null,null,null,null,null,"406. USTED SEÑOR(A) DIRECTOR(A), ¿CONOCE EL PORTAL WEB DE EVALUACIÓN DOCENTE?"]
[null,null,null,null,null,null,null,null,null,null,null,"https://evaluaciondocente.perueduca.pe/"]
[]
[null,null,null,null,null,null,null,null,null,null,null,"Sí",null,null,null,"No"]

{"sheet":"C500","index":6,"n_rows":142,"n_cols":27,"rows_kept":142,"cut":false,"hidden":true,"merged":[[76,9,76,12],[77,9,77,12],[78,9,78,12],[79,9,79,12],[80,9,80,12],[74,9,74,12],[74,20,74,21],[74,22,74,23],[75,9,75,12],[75,20,75,21],[75,22,75,23],[71,16,72,19],[71,20,71,25],[72,9,72,12],[72,22,72,23],[73,9,73,12],[73,20,73,21],[73,22,73,23],[58,2,58,4],[58,5,58,7],[58,8,58,9],[58,10,58,11],[70,5,71,6],[70,8,71,8],[70,9,71,12],[54,2,57,4],[54,5,57,7],[54,8,57,9],[54,10,57,11],[54,12,57,12],[25,3,25,6],[25,8,25,9],[25,10,25,11],[30,17,36,20],[32,15,34,16],[12,21,12,26],[14,15,21,16],[14,17,21,20],[18,7,18,9],[18,10,18,12],[19,7,20,7],[19,8,20,9],[19,10,20,11],[19,12,20,12],[21,8,21,9],[21,10,21,11],[12,15,13,16],[12,17,13,20],[22,8,22,9],[22,10,22,11],[22,15,29,16],[22,17,29,20],[23,10,23,11],[24,8,24,9],[24,10,24,11]]}
[]
[null,null,null,null,null,"CENSO EDUCATIVO 2025"]
[null,null,null,null,null,"MATRÍCULA, DOCENTES Y MATERIALES EDUCATIVOS"]
[]
[]
[]
[null,"500. GESTIÓN DE RIESGO DE DESASTRES"]
[]
[null,null,"501. EN EL PRESENTE AÑO, ESTE SERVICIO/NIVEL EDUCATIVO, ¿HA INCORPORADO ACCIONES",null,null,null,null,null,null,null,null,null,null,null,null,"502. SOBRE LA GESTIÓN DEL RIESGO DE DESASTRES EN ESTE SERVICIO/NIVEL EDUCATIVO,"]
[null,null,null,"ESTRATÉGICAS Y OPERATIVAS EN GESTIÓN DEL RIESGO DE DESASTRES Y SEGURIDAD Y",null,null,null,null,null,null,null,null,null,null,null,null,"ATIENDA LAS SIGUIENTES PREGUNTAS:"]
[null,null,null,"DEFENSA NACIONAL EN SUS INSTRUMENTOS DE GESTIÓN VIGENTES? ",null,null,null,null,null,null,null,null,null,null,null,null,"Marque con una “X” en “Si” o “No” según corresponda en atención a cada pregunta"]
[]
[null,null,null,"Sí","",null,null,null,"No  ",null,null,null,null,null,null,"Bien o Servicio",null,"Pregunta",null,null,null,"Marque con un “X”, según corresponda "]
[null,null,null,null,null,null,null,null,null,null,null,null,null,null,null,null,null,null,null,null,null,null,"SI","NO","Si es Sí, de quién lo recibió"]
[null,null,null,null,null,null,null,null,null,null,null,null,null,null,null,"Planos de Seguridad",null,"¿El servicio/nivel educativo cuenta con planos de seguridad acorde a la normativa?"]
[null,null,null,"Precise las acciones incorporadas en los documentos de gestión",null,null,null,null,null,null,null,null,null,null,null,null,null,null,null,null,null,null,null,null,"De la DRE/GRE",null,""]
[null,null,null,"Marque con una “X”, según corresponda ",null,null,null,null,null,null,null,null,null,null,null,null,null,null,null,null,null,null,null,null,"De la UGEL",null,""]
[null,null,null,null,null,null,null,null,null,null,null,null,null,null,null,null,null,null,null,null,null,null,"",null,"De la Municipalidad",null,""]
[null,null,null,null,null,null,null,"Riesgo de Desastres",null,null,"Seguridad y Defensa Nacional",null,null,null,null,null,null,null,null,null,null,null,null,null,"De una entidad privada",null,""]
[null,null,"Documentos de Gestión",null,null,null,null,"Acciones Estratégicas","Acciones Operativas",null,"Acciones Estratégicas",null,"Acciones Operativas",null,null,null,null,null,null,null,null,null,null,null,"Adquisición de la IE",null,""]
[null,null,null,null,null,null,null,null,null,null,null,null,null,null,null,null,null,null,null,null,null,null,null,null,"Donación",null,""]
[null,null,"Proyecto Educativo Inst. (PEI)",null,null,null,null,"",null,null,""]
[null,null,"Plan Anual de Trabajo (PAT)",null,null,null,null,null,"",null,null,null,"",null,null,"Dispositivos de Seguridad",null,"¿El servicio/nivel educativo cuenta con dispositivos de seguridad acorde a lo que indica en sus planos de seguridad?"]
[null,null,"Proyecto Curricular. Inst. (PCI)",null,null,null,null,"",null,null,"",null,null,null,null,null,null,null,null,null,null,null,null,null,"De la DRE/GRE",null,""]
[null,null,"Reglamento Interno (RI)",null,null,null,null,null,"",null,null,null,"",null,null,null,null,null,null,null,null,null,null,null,"De la UGEL",null,""]
[null,null,"Otros","",null,null,null,"","",null,"",null,"",null,null,null,null,null,null,null,null,null,"",null,"De la Municipalidad",null,""]
[null,null,null,null,null,null,null,null,null,null,null,null,null,null,null,null,null,null,null,null,null,null,null,null,"De una entidad privada",null,""]
[null,null,null,null,null,null,null,null,null,null,null,null,null,null,null,null,null,null,null,null,null,null,null,null,"Adquisición de la IE",null,""]
[null,null,null,null,null,null,null,null,null,null,null,null,null,null,null,null,null,null,null,null,null,null,null,null,"Donación",null,""]
[]
[null,null,null,null,null,null,null,null,null,null,null,null,null,null,null,null,null,"¿El servicio/nivel educativo cuenta con dispositivos de seguridad incompletos"]
[null,null,null,null,null,null,null,null,null,null,null,null,null,null,null,null,null,null,null,null,null,null,null,null,"De la DRE/GRE",null,""]
[null,null,null,null,null,null,null,null,null,null,null,null,null,null,null,"Otros Casos",null,null,null,null,null,null,null,null,"De la UGEL",null,""]
[null,null,null,null,null,null,null,null,null,null,null,null,null,null,null,null,null,null,null,null,null,null,"",null,"De la Municipalidad",null,""]
[null,null,null,null,null,null,null,null,null,null,null,null,null,null,null,null,null,null,null,null,null,null,null,null,"De una entidad privada",null,""]
[null,null,null,null,null,null,null,null,null,null,null,null,null,null,null,null,null,null,null,null,null,null,null,null,"Adquisición de la IE",null,""]
[null,null,null,null,null,null,null,null,null,null,null,null,null,null,null,null,null,null,null,null,null,null,null,null,"Donación",null,""]
[]
[]
[]
[null,null,"503. EN EL PRESENTE AÑO, LOS MIEMBROS DE ESTE SERVICIO/NIVEL EDUCATIVO,",null,null,null,null,null,null,null,null,null,null,null,null,"504. EN EL PRESENTE AÑO, ESTE SERVICIO/NIVEL EDUCATIVO HA SUFRIDO EL IMPACTO DE"]
[null,null,null,"¿HAN RECIBIDO ACCIONES FORMATIVAS EN MATERIA DE LA GESTIÓN DEL RIESGO ",null,null,null,null,null,null,null,null,null,null,null,null,"DAÑOS DE UN FENÓMENO NATURAL O ANTRÓPICO?"]
[null,null,null,"DE DESASTRES (GRD) Y/O SEGURIDAD Y DEFENSA NACIONAL (SDN)?"]
[null,null,null,null,null,null,null,null,null,null,null,null,null,null,null,null,"Sí","",null,null,null,null,"No  "]
[null,null,null,"Sí","",null,null,null,"No  "]
[]
[null,null,null,null,null,null,null,null,null,null,"Entidad",null,"SI - NO",null,null,null,null,null,null,"¿El servicio fue",null,null,"Sí",""]
[null,null,null,null,null,"El servicio fue brindado por:",null,null,null,"DRE/GRE",null,null,"",null,null,null,null,null,null,"suspendido?"]
[null,null,null,null,null,null,null,null,null,"UGEL",null,null,"",null,null,null,null,null,null,null,null,null,"No  ",""]
[null,null,null,null,null,null,null,null,null,"Municipio",null,null,""]
[null,null,null,null,null,null,null,null,null,"ONG/Entidad privada",null,null,"",null,null,null,"¿Cuál de los siguientes canales se utilizó para reportar la emergencia a la UGEL?"]
[null,null,null,null,null,null,null,null,null,null,null,null,{"$f":"COUNTIF(M48:M51,\"SI\")+COUNTIF(M48:M51,\"NO\")","v":0},null,null,null,"Marque con una “X”, una o más opciones"]
[null,null,"Tematicas: Marque con una “X”, según corresponda"]
[null,null,"Gestión del Riesgo de Desastres",null,null,null,null,null,null,null,"Seguridad y Defensa Nacional",null,null,null,null,null,"","Celular"]
[null,null,"Política/Plan NAcional en GRD",null,null,"Componentes, procesos o procedimientos de la GRD",null,null,"*Herramientas técnicas / Financieras en GRD",null,"Política/Plan Nacional en SDN",null,"Fundamentos de la SDN",null,null,null,"","Radiofonía"]
[null,null,null,null,null,null,null,null,null,null,null,null,null,null,null,null,"","Teléfono satelital"]
[null,null,null,null,null,null,null,null,null,null,null,null,null,null,null,null,"","Plataforma web"]
[null,null,null,null,null,null,null,null,null,null,null,null,null,null,null,null,"","Por conducto regular (oficio, informe)"]
[null,null,"",null,null,"",null,null,"",null,"",null,"",null,null,null,"","No se sabía que había que reportar a la UGEL"]
[null,null,{"$f":"COUNTIF(C59:M59,\"X\")","v":0},null,null,null,null,null,null,null,null,null,null,null,null,null,"","No se reportó la emergencia porque no hay cobertura ni canal disponible en la zona."]
[]
[]
[null,null,"505. EN EL PRESENTE AÑO, ESTE SERVICIO/NIVEL EDUCATIVO, ¿HA ORGANIZADO Y EJECUTADO",null,null,null,null,null,null,null,null,null,null,null,null,"507. EN EL AÑO 2024, ESTE SERVICIO/NIVEL EDUCATIVO, ¿PARTICIPÓ EN LOS SIMULACROS"]
[null,null,null,"CAMPAÑAS COMUNICACIONALES DE GESTIÓN DEL RIESGO DE DESASTRES (GRD) Y/O",null,null,null,null,null,null,null,null,null,null,null,null,"CONVOCADOS POR MINEDU Y/O INDECI?"]
[null,null,null,"SEGURIDAD Y DEFENSA NACIONAL (SDN)?"]
[null,null,null,null,null,null,null,null,null,null,null,null,null,null,null,null,"Sí","",null,null,null,null,"No  "]
[null,null,null,"Sí","",null,null,null,"No  "]
[]
[null,null,null,null,null,null,null,null,null,null,null,null,null,null,null,null,"¿Qué nivel de preparación lograron?"]
[null,null,null,"Tipo de campaña que realizó",null,null,null,null,null,null,null,null,null,null,null,null,"Marque con una “X”, el nivel logrado en cada simulacro"]
[null,null,null,null,null,"Ítems",null,null,"Elija una opción","Temática de la campaña*"]
[null,null,null,null,null,null,null,{"$f":"COUNTIF(I73:I81,\"SI\")+COUNTIF(I73:I81,\"NO\")","v":0},null,null,null,null,null,null,null,null,"N° de simulacro",null,null,null,"Nivel de preparación Marque con un “X”"]
[null,null,null,1,"Pasacalle",null,null,null,"","",null,null,null,null,null,null,null,null,null,null,"Inicio",null,"Proceso",null,"Bueno","Destacado"]
[null,null,null,2,"Feria",null,null,null,"","",null,null,null,null,null,null,1,"Primer simulacro",null,null,"",null,"",null,"",""]
[null,null,null,3,"Activaciones motivadoras",null,null,null,"","",null,null,null,null,null,null,2,"Segundo simulacro",null,null,"",null,"",null,"",""]
[null,null,null,4,"Conferencias /Foros",null,null,null,"","",null,null,null,null,null,null,3,"Tercer simulacro",null,null,"",null,"",null,"",""]
[null,null,null,5,"Webinars",null,null,null,"",""]
[null,null,null,6,"Difusión de afiches, trípticos, volantes",null,null,null,"",""]
[null,null,null,7,"Murales",null,null,null,"",""]
[null,null,null,8,"Post en redes sociales",null,null,null,"",""]
[null,null,null,9,"Post radiales",null,null,null,"",""]
[]
[]
[null,null,"506. ESTE SERVICIO/NIVEL EDUCATIVO, ¿CUENTA CON UN PLAN DE GESTIÓN DEL RIESGO DE DESASTRES?"]
[]
[null,null,null,"Sí","",null,null,null,"No  "]
[]
[]
[null,null,null,"¿Qué actividades ha desarrollado en el Plan?"]
[null,null,null,"Marque con una “X”, una o más opciones"]
[]
[null,null,null,"","Identificó los peligros más frecuentes de la IE. (Ejem: lluvias, huaycos, entre otros)."]
[null,null,null,"","Identificó las vulnerabilidades en la IE. (Ejem: techos, canaletas, paredes, pisos en mal estado, personal sin capacitación, entre otros)."]
[null,null,null,"","Priorizó acciones correctivas en la infraestructura de la IE con presupuesto de mantenimiento."]
[null,null,null,"","Procedimientos de evacuación a zonas seguras en situaciones de emergencias."]
[null,null,null,"","Procedimientos de contención y soporte socioemocional en situaciones de emergencias."]
[null,null,null,"","Procedimientos de aplicación del currículo vigente en situaciones de emergencias"]
[]
[]
[]
[]
[]
[]
["DIRECTOR(A)"]
["SUB DIRECTOR(A)"]
["DOCENTE"]
["COORDINADOR(A)"]
["ASESOR"]
["ADMINISTRATIVO"]
["ASISTENTE"]
["AUXILIAR"]
["SECRETARIA(O)"]
["ESTADÍSTICO"]
["ESPECIALISTA"]
["BIBLIOTECARIO"]
["CARE"]
["COMANDANTE PNP"]
["CONTADOR"]
["DAIP"]
["DIGITADOR(A)"]
["GERENTE"]
["JEFE ACADÉMICO"]
["JEFE ADMINISTRATIVO"]
["JEFE DE ÁREA"]
["JEFE DE LABORATORIO"]
["JEFE DE PERSONAL"]
["JEFE DE SEDE"]
["JEFE DE UNIDAD"]
["OFICINISTA"]
["OPERADOR DE SISTEMAS"]
["PERSONAL DE SERVICIO"]
["PROGRAMADOR"]
["PROMOTOR(A)"]
["PSICOLOGO"]
["REGISTRADOR(A)"]
["REPRESENTANTE LEGAL"]
["SOPORTE TECNOLOGICO"]
["TÉCNICO ADMINISTRATIVO"]
["TESORERO(A)"]
["TRABAJADOR SOCIAL"]
["TUTOR"]
["OTROS"]

{"sheet":"C600","index":7,"n_rows":141,"n_cols":23,"rows_kept":141,"cut":false,"hidden":true,"merged":[[46,8,46,10],[47,8,47,10],[47,20,47,22],[48,8,48,10],[69,20,69,22],[85,3,85,7],[85,8,85,10],[85,11,85,18],[85,19,85,21],[83,3,83,7],[83,8,83,10],[83,11,83,18],[83,19,83,21],[84,3,84,7],[84,8,84,10],[84,11,84,18],[84,19,84,21],[44,9,44,11],[15,15,16,19],[15,20,16,20],[15,21,16,21],[15,22,16,22],[26,17,26,19]]}
[]
[null,null,null,null,null,"CENSO EDUCATIVO 2025"]
[null,null,null,null,null,"MATRÍCULA, DOCENTES Y MATERIALES EDUCATIVOS"]
[]
[]
[]
[null,"600. EDUCACIÓN AMBIENTAL"]
[]
[null,null,"601. EN EL PRESENTE AÑO, ESTE SERVICIO/NIVEL EDUCATIVO, ¿HA ELABORADO SU PROYECTO",null,null,null,null,null,null,null,null,null,null,null,"602. SEÑOR(A) DIRECTOR(A), SI HA ELABORADO SU PROYECTO EDUCATIVO AMBIENTAL"]
[null,null,null,"EDUCATIVO AMBIENTAL INTEGRADO (PEAI)?",null,null,null,null,null,null,null,null,null,null,null,"INTEGRADO (PEAI), MARQUE USTED, LAS PROBLEMÁTICAS/OPORTUNIDADES AMBIENTALES"]
[null,null,null,null,null,null,null,null,null,null,null,null,null,null,null,"QUE SE ABORDAN EN EL PEAI, DE ACUERDO A LO SIGUIENTE:"]
[null,null,null,"Sí"]
[null,null,null,null,null,null,null,null,null,null,null,null,null,null,null,"Marque con una “X”, hasta dos opciones"]
[null,null,null,null,null,"¿Ha implementado su proyecto educativo ambiental integrado (PEAI):"]
[]
[null,null,null,null,null,"Sí  ",null,null,"Período",null,"Año","Mes",null,null,null,"Problemáticas / Oportunidades",null,null,null,null,"Principal","Comple- mentario","No aplica"]
[null,null,null,null,null,null,null,"","Desde"]
[null,null,null,null,null,"No  ",null,"","Hasta",null,null,null,null,null,null,1,"Contaminación por residuos sólidos",null,null,null,""]
[null,null,null,null,null,null,null,null,null,null,null,null,null,null,null,2,"Cambio climático",null,null,null,null,""]
[null,null,null,null,null,null,null,null,null,null,null,null,null,null,null,3,"Contaminación del agua",null,null,null,null,""]
[null,null,null,"No  ",null,null,"Pase a la pregunta 603.",null,null,null,null,null,null,null,null,4,"Desertificación",null,null,null,null,""]
[null,null,null,null,null,null,null,null,null,null,null,null,null,null,null,5,"Depredación de flora y fauna",null,null,null,null,""]
[null,null,null,null,null,null,null,null,null,null,null,null,null,null,null,6,"Microplásticos",null,null,null,null,""]
[null,null,null,null,"Indique el/los motivo(s):",null,null,null,null,null,null,null,null,null,null,7,"3R: reducir, reusar, reciclar",null,null,null,null,""]
[null,null,null,null,"Marque con una “X”, una o más opciones",null,null,null,null,null,null,null,null,null,null,8,"Contaminación del aire",null,null,null,null,""]
[null,null,null,null,null,null,null,null,null,null,null,null,null,null,null,9,"Alimentación saludable",null,null,null,null,""]
[null,null,null,null,null,"Falta de conocimiento o capacitación",null,null,null,null,null,null,null,null,null,10,"Otro"]
[null,null,null,null,null,"Falta de recursos"]
[null,null,null,null,null,"Resistencia al cambio"]
[null,null,null,null,null,"Dificultades para integrar el PEAI en el currículo"]
[null,null,null,null,null,"Falta de apoyo institucional"]
[]
[]
[null,null,"603. EL SERVICIO/NIVEL EDUCATIVO, ¿CUENTA CON LA BRIGADA DE EDUCACIÓN AMBIENTAL Y",null,null,null,null,null,null,null,null,null,null,null,"605. SEÑOR(A) DIRECTOR(A), ¿LA BRIGADA DE EDUCACIÓN AMBIENTAL Y GESTIÓN DEL"]
[null,null,null,"GESTIÓN DE RIESGO DE DESASTRES?",null,null,null,null,null,null,null,null,null,null,null,"RIESGO DE DESASTRES CONFORMADA HA SIDO FORTALECIDO?"]
[]
[null,null,null,null,null,null,null,null,null,null,null,null,null,null,null,"Sí"]
[]
[null,null,null,"Sí",null,null,null,null,"No  ",null," u   Pase a la pregunta 1000.",null,null,null,null,null,null,null,"¿Quiénes la realizaron?"]
[null,null,null,null,null,null,null,null,null,null,null,null,null,null,null,null,null,null,"Marque con una “X”, una o más opciones"]
[]
[null,null,null,null,null,"Documento que lo aprueba",null,null,null,null,"Resolución",null,null,null,null,null,null,null,null,"El brigadista líder"]
[null,null,null,null,null,null,null,null,null,null,"Otro",null,null,null,null,null,null,null,null,"Directivo"]
[null,null,null,null,null,null,null,null,null,null,null,null,null,null,null,null,null,null,null,"Docentes"]
[null,null,null,null,null,"Número del Documento",null,null,null,null,null,null,null,null,null,null,null,null,null,"UGEL"]
[null,null,null,null,null,null,null,null,null,null,null,null,null,null,null,null,null,null,null,"DRE/GRE"]
[null,null,null,null,null,null,null,null,"Desde:",null,null,"Hasta:",null,null,null,null,null,null,null,"Gobierno local"]
[null,null,null,null,null,"Vigencia de la brigada",null,null,"DD/MM/AAAA",null,null,"DD/MM/AAAA",null,null,null,null,null,null,null,"Otro"]
[]
[null,null,null,null,null,null,null,null,null,null,null,null,null,null,"606. SEÑOR(A) DIRECTOR(A), INDIQUE USTED, ¿SI EN LOS DOS ÚLTIMOS AÑOS, LOS"]
[null,null,null,null,null,null,null,null,null,null,null,null,null,null,null,"INTEGRANTES DE LA BRIGADA DE EDUCACIÓN AMBIENTAL Y GESTIÓN DEL"]
[null,null,null,null,null,null,null,null,null,null,null,null,null,null,null,"RIESGO DE DESASTRES, HAN SIDO CAPACITADOS?"]
[]
[null,null,null,null,null,null,null,null,null,null,null,null,null,null,null,"Sí",null,null,"¿En qué temas han sido capacitados?"]
[null,null,"604. SEÑOR(A) DIRECTOR(A), LA BRIGADA DE EDUCACIÓN AMBIENTAL Y GESTIÓN DEL",null,null,null,null,null,null,null,null,null,null,null,null,null,null,null,"Marque con una “X”, una o más opciones"]
[null,null,null,"RIESGO DE DESASTRES CONFORMADA, ¿CUENTA CON UN PLAN DE ACCIÓN ELABORADO?"]
[null,null,null,null,null,null,null,null,null,null,null,null,null,null,null,null,null,null,null,"Cambio climático"]
[null,null,null,null,null,null,null,null,null,null,null,null,null,null,null,null,null,null,null,"Manejo de residuos sólidos"]
[null,null,null,"Sí",null,null,null,null,null,null,null,null,null,null,null,null,null,null,null,"Cuidado de los humedales"]
[null,null,null,null,null,null,null,null,null,null,null,null,null,null,null,null,null,null,null,"Diversidad biológica"]
[null,null,null,null,null,null,"Indique la fecha de la elaboración del plan de acción",null,null,null,null,null,null,null,null,null,null,null,null,"Primeros auxilios"]
[null,null,null,null,null,null,null,null,null,null,null,null,null,null,null,null,null,null,null,"Capacitación contra Incendios"]
[null,null,null,null,null,null,null,null,null,null,null,null,null,null,null,null,null,null,null,"Señalización y evacuación"]
[null,null,null,null,null,null,"Día","Mes","Año",null,null,null,null,null,null,null,null,null,null,"Seguridad y protección"]
[null,null,null,null,null,null,null,null,null,null,null,{"$f":"CONCATENATE(G65,\"/\",H65,\"/\",I65)","v":"//"},null,null,null,null,null,null,null,"Soporte Socioemocional y actividades lúdicas"]
[null,null,null,null,null,null,null,null,null,null,null,null,null,null,null,null,null,null,null,"Alimentación saludable"]
[null,null,null,null,null,null,null,null,null,null,null,null,null,null,null,null,null,null,null,"Transporte sostenible"]
[null,null,null,null,null,null,null,null,null,null,null,null,null,null,null,null,null,null,null,"Desertificación"]
[null,null,null,null,null,null,null,null,null,null,null,null,null,null,null,null,null,null,null,"Plásticos y microplásticos"]
[null,null,null,null,null,null,null,null,null,null,null,null,null,null,null,null,null,null,null,"Otro"]
[null,null,null,"No  ",null,null,null,null,null,null,null,null,null,null,null,null,null,null,""]
[null,null,null,null,null,null,null,null,null,null,null,null,null,null,null,"No  ",null,null,"Indique, ¿cuál es el motivo?"]
[null,null,null,null,null,null,null,null,null,null,null,null,null,null,null,null,null,null,"Marque con una “X”, una opción"]
[null,null,null,null,"¿El plan de acción esta incorporado en el plan anual de trabajo?"]
[null,null,null,null,null,null,null,null,null,null,null,null,null,null,null,null,null,null,null,"No saben a quién solicitar apoyo para la capacitación"]
[null,null,null,null,"Sí",null,null,null,"No  ",null,null,null,null,null,null,null,null,null,null,"No cuentan con aliados especializados"]
[null,null,null,null,null,null,null,null,null,null,null,null,null,null,null,null,null,null,null,"Se suspendió por cruce de actividades"]
[null,null,null,null,null,null,null,null,null,null,null,null,null,null,null,null,null,null,null,"No se ha recibido invitación"]
[]
[]
[null,"DATOS DEL DIRECTOR/RESPONSABLE DEL LLENADO DE LA CÉDULA"]
[]
[null,null,null,"NOMBRES Y APELLIDOS",null,null,null,null,"CARGO",null,null,"CORREO ELECTRÓNICO",null,null,null,null,null,null,null,"TELÉFONO"]
[]
[]
[]
[]
[]
[]
[]
[]
[]
[]
[]
[]
[]
[]
[]
[]
[]
[]
[]
["DIRECTOR(A)"]
["SUB DIRECTOR(A)"]
["DOCENTE"]
["COORDINADOR(A)"]
["ASESOR"]
["ADMINISTRATIVO"]
["ASISTENTE"]
["AUXILIAR"]
["SECRETARIA(O)"]
["ESTADÍSTICO"]
["ESPECIALISTA"]
["BIBLIOTECARIO"]
["CARE"]
["COMANDANTE PNP"]
["CONTADOR"]
["DAIP"]
["DIGITADOR(A)"]
["GERENTE"]
["JEFE ACADÉMICO"]
["JEFE ADMINISTRATIVO"]
["JEFE DE AREA"]
["JEFE DE LABORATORIO"]
["JEFE DE PERSONAL"]
["JEFE DE SEDE"]
["JEFE UNIDAD"]
["OFICINISTA"]
["OPERADOR DE SISTEMAS"]
["PERSONAL DE SERVICIO"]
["PROGRAMADOR"]
["PROMOTOR(A)"]
["PSICOLOGO"]
["REGISTRADOR(A)"]
["REPRESENTANTE LEGAL"]
["SOPORTE TECNOLOGICO"]
["TÉCNICO ADMINISTRATIVO"]
["TESORERO(A)"]
["TRABAJADOR SOCIAL"]
["TUTOR"]
["OTROS"]

{"sheet":"Enviar","index":8,"n_rows":9,"n_cols":3,"rows_kept":9,"cut":false,"hidden":true,"merged":[[0,0,0,3],[1,0,1,3]]}
["CENSO EDUCATIVO 2025"]
["MATRÍCULA, DOCENTES"]
[]
[]
[null,"Paso 1:","Realice el ENVÍO con su clave EOL."]
[]
[null,"Paso 2:","Una vez realizado el ENVÍO,  Revise su constancia de envio."]
[]
[null,"  ADVERTENCIA","ASEGÚRESE DE REGISTRAR TODA LA INFORMACIÓN DEL NIVEL INFORMANTE"]